Workbook

Sheet Sheet_0
A1: 工单归属省分 | B1: 河北 | C1: 日 期 | D1: 2023-04-12 | E1: 专业线 | F1: 网络质量 | H1: 大类问题名称 | I1: 移网网络体验 | J1: 工单办结月份 | K1: 2023-04
A2: 高品质服务满意度2.0日报表 （日期说明：每月1日至3日，办结月份包含本月数据与上月全月数据。）
A3: 工单归属省分 | B3: 工单归属地市 | C3: 工单归属区县 | D3: 专业线 | E3: 大类问题 | F3: 小类问题 | H3: 总投诉率（件/万户） | I3: 10010热线投诉率（件/万户） | J3: 营业厅、在线等其他投诉渠道投诉率（件/万户） | K3: 10015升诉投诉率（件/万户） | L3: 日累吹哨量（受理量） | M3: 日累投诉吹哨量（受理量） | N3: 日累故障吹哨量（受理量） | O3: 日累总报到量（办结量） | P3: 日累10010热线报到量（办结量） | Q3: 日累10010热线投诉量（办结量） | R3: 日累10010热线报障量（办结量） | S3: 日累营业厅、在线等其他投诉渠道报到量（办结量） | T3: 日累营业厅、在线等其他投诉渠道投诉量（办结量） | U3: 日累营业厅、在线等其他投诉渠道报障量（办结量） | V3: 日累10015升诉量（办结量） | W3: 当日总工单量（办结量） | X3: 当日10010热线报到量（办结量） | Y3: 当日10010热线投诉量（办结量） | Z3: 当日10010热线报障量（办结量） | AA3: 当日营业厅、在线等其他投诉渠道报到量（办结量） | AB3: 当日营业厅、在线等其他投诉渠道投诉量（办结量） | AC3: 当日营业厅、在线等其他投诉渠道报障量（办结量） | AD3: 当日10015升诉（办结量） | AE3: 总满意率 | AF3: 总满意量 | AG3: 总满意参评量 | AH3: 总解决率 | AI3: 总解决量 | AJ3: 总解决参评量 | AK3: 总响应率 | AL3: 总响应量 | AM3: 总响应参评量 | AN3: 投诉满意率 | AO3: 日累-投诉满意量 | AP3: 日累-投诉满意参评量 | AQ3: 投诉解决率 | AR3: 日累-投诉解决量 | AS3: 日累-投诉解决参评量 | AT3: 投诉响应率 | AU3: 日累-投诉响应量 | AV3: 日累-投诉响应参评量 | AW3: 日累-投诉未邀请评价量 | AX3: 故障满意率 | AY3: 日累-故障满意量 | AZ3: 日累-故障满意参评量 | BA3: 故障解决率 | BB3: 日累-故障解决量 | BC3: 日累-故障解决参评量 | BD3: 故障响应率 | BE3: 日累-故障响应量 | BF3: 日累-故障响应参评量 | BG3: 投诉率日累环比 | BH3: 满意率日累环比
A4: 河北 | B4: 全部 | C4: - | D4: 网络质量 | E4: 移网网络体验 | F4: -- | G4: =B4&F4 -> 全部-- | H4: 2.3587 | I4: 2.1705 | J4: 0.0578 | K4: 0.1304 | L4: 5112 | M4: 5112 | N4: 0 | O4: 5138 | P4: 4728 | Q4: 4728 | R4: 0 | S4: 126 | T4: 126 | U4: 0 | V4: 284 | W4: 408 | X4: 372 | Y4: 372 | Z4: 0 | AA4: 10 | AB4: 10 | AC4: 0 | AD4: 26 | AE4: 0.9175 | AF4: 2090 | AG4: 2272 | AH4: 0.862 | AI4: 2098 | AJ4: 2428 | AK4: 0.967 | AL4: 2083 | AM4: 2148 | AN4: 0.9175 | AO4: 2090 | AP4: 2272 | AQ4: 0.862 | AR4: 2098 | AS4: 2428 | AT4: 0.967 | AU4: 2083 | AV4: 2148 | AW4: 6 | AX4: 0 | AY4: 0 | AZ4: 0 | BA4: 0 | BB4: 0 | BC4: 0 | BD4: 0 | BE4: 0 | BF4: 0 | BG4: 0.399 | BH4: 0.0259
A5: 河北 | B5: 全部 | C5: - | D5: 网络质量 | E5: 移网网络体验 | F5: 上网中断、不可用 | G5: =B5&F5 -> 全部上网中断、不可用 | H5: 0.5711 | I5: 0.465 | J5: 0.0092 | K5: 0.0969 | L5: 1274 | M5: 1274 | N5: 0 | O5: 1244 | P5: 1013 | Q5: 1013 | R5: 0 | S5: 20 | T5: 20 | U5: 0 | V5: 211 | W5: 85 | X5: 63 | Y5: 63 | Z5: 0 | AA5: 1 | AB5: 1 | AC5: 0 | AD5: 21 | AE5: 0.9263 | AF5: 515 | AG5: 556 | AH5: 0.8809 | AI5: 525 | AJ5: 596 | AK5: 0.9789 | AL5: 510 | AM5: 521 | AN5: 0.9263 | AO5: 515 | AP5: 556 | AQ5: 0.8809 | AR5: 525 | AS5: 596 | AT5: 0.9789 | AU5: 510 | AV5: 521 | AW5: 0 | AX5: 0 | AY5: 0 | AZ5: 0 | BA5: 0 | BB5: 0 | BC5: 0 | BD5: 0 | BE5: 0 | BF5: 0 | BG5: 0.3981 | BH5: 0.0417
A6: 河北 | B6: 全部 | C6: - | D6: 网络质量 | E6: 移网网络体验 | F6: 上网网络卡顿 | G6: 全部上网网络卡顿 | H6: 0.7001 | I6: 0.6771 | J6: 0.0179 | K6: 0.005 | L6: 1570 | M6: 1570 | N6: 0 | O6: 1525 | P6: 1475 | Q6: 1475 | R6: 0 | S6: 39 | T6: 39 | U6: 0 | V6: 11 | W6: 135 | X6: 132 | Y6: 132 | Z6: 0 | AA6: 2 | AB6: 2 | AC6: 0 | AD6: 1 | AE6: 0.9311 | AF6: 635 | AG6: 682 | AH6: 0.8982 | AI6: 653 | AJ6: 727 | AK6: 0.9769 | AL6: 633 | AM6: 648 | AN6: 0.9311 | AO6: 635 | AP6: 682 | AQ6: 0.8982 | AR6: 653 | AS6: 727 | AT6: 0.9769 | AU6: 633 | AV6: 648 | AW6: 0 | AX6: 0 | AY6: 0 | AZ6: 0 | BA6: 0 | BB6: 0 | BC6: 0 | BD6: 0 | BE6: 0 | BF6: 0 | BG6: 0.2109 | BH6: 0.0324
A7: 河北 | B7: 全部 | C7: - | D7: 网络质量 | E7: 移网网络体验 | F7: 漫游争议 | G7: 全部漫游争议 | H7: 0.0064 | I7: 0.005 | J7: 0.0014 | K7: 0 | L7: 11 | M7: 11 | N7: 0 | O7: 14 | P7: 11 | Q7: 11 | R7: 0 | S7: 3 | T7: 3 | U7: 0 | V7: 0 | W7: 1 | X7: 0 | Y7: 0 | Z7: 0 | AA7: 1 | AB7: 1 | AC7: 0 | AD7: 0 | AE7: 1 | AF7: 7 | AG7: 7 | AH7: 1 | AI7: 7 | AJ7: 7 | AK7: 1 | AL7: 7 | AM7: 7 | AN7: 1 | AO7: 7 | AP7: 7 | AQ7: 1 | AR7: 7 | AS7: 7 | AT7: 1 | AU7: 7 | AV7: 7 | AW7: 0 | AX7: 0 | AY7: 0 | AZ7: 0 | BA7: 0 | BB7: 0 | BC7: 0 | BD7: 0 | BE7: 0 | BF7: 0 | BG7: 0.9915 | BH7: 0
A8: 河北 | B8: 全部 | C8: - | D8: 网络质量 | E8: 移网网络体验 | F8: 短信使用问题 | G8: 全部短信使用问题 | H8: 0.0574 | I8: 0.0312 | J8: 0.0133 | K8: 0.0129 | L8: 122 | M8: 122 | N8: 0 | O8: 125 | P8: 68 | Q8: 68 | R8: 0 | S8: 29 | T8: 29 | U8: 0 | V8: 28 | W8: 13 | X8: 7 | Y8: 7 | Z8: 0 | AA8: 3 | AB8: 3 | AC8: 0 | AD8: 3 | AE8: 0.8148 | AF8: 22 | AG8: 27 | AH8: 0.6875 | AI8: 22 | AJ8: 32 | AK8: 0.8333 | AL8: 20 | AM8: 24 | AN8: 0.8148 | AO8: 22 | AP8: 27 | AQ8: 0.6875 | AR8: 22 | AS8: 32 | AT8: 0.8333 | AU8: 20 | AV8: 24 | AW8: 0 | AX8: 0 | AY8: 0 | AZ8: 0 | BA8: 0 | BB8: 0 | BC8: 0 | BD8: 0 | BE8: 0 | BF8: 0 | BG8: 0.8039 | BH8: 0.0864
A9: 河北 | B9: 全部 | C9: - | D9: 网络质量 | E9: 移网网络体验 | F9: 语音通信问题 | G9: 全部语音通信问题 | H9: 1.0237 | I9: 0.9921 | J9: 0.0161 | K9: 0.0156 | L9: 2135 | M9: 2135 | N9: 0 | O9: 2230 | P9: 2161 | Q9: 2161 | R9: 0 | S9: 35 | T9: 35 | U9: 0 | V9: 34 | W9: 174 | X9: 170 | Y9: 170 | Z9: 0 | AA9: 3 | AB9: 3 | AC9: 0 | AD9: 1 | AE9: 0.9056 | AF9: 911 | AG9: 1000 | AH9: 0.8312 | AI9: 891 | AJ9: 1066 | AK9: 0.957 | AL9: 913 | AM9: 948 | AN9: 0.9056 | AO9: 911 | AP9: 1000 | AQ9: 0.8312 | AR9: 891 | AS9: 1066 | AT9: 0.957 | AU9: 913 | AV9: 948 | AW9: 6 | AX9: 0 | AY9: 0 | AZ9: 0 | BA9: 0 | BB9: 0 | BC9: 0 | BD9: 0 | BE9: 0 | BF9: 0 | BG9: 0.5409 | BH9: 0.0123
A10: 河北 | B10: 保定 | C10: - | D10: 网络质量 | E10: 移网网络体验 | F10: -- | G10: 保定-- | H10: 1.9307 | I10: 1.7416 | J10: 0.0684 | K10: 0.1207 | L10: 542 | M10: 542 | N10: 0 | O10: 480 | P10: 433 | Q10: 433 | R10: 0 | S10: 17 | T10: 17 | U10: 0 | V10: 30 | W10: 37 | X10: 34 | Y10: 34 | Z10: 0 | AA10: 1 | AB10: 1 | AC10: 0 | AD10: 2 | AE10: 0.9231 | AF10: 156 | AG10: 168 | AH10: 0.883 | AI10: 166 | AJ10: 187 | AK10: 0.9632 | AL10: 157 | AM10: 162 | AN10: 0.9231 | AO10: 156 | AP10: 168 | AQ10: 0.883 | AR10: 166 | AS10: 187 | AT10: 0.9632 | AU10: 157 | AV10: 162 | AW10: 1 | AX10: 0 | AY10: 0 | AZ10: 0 | BA10: 0 | BB10: 0 | BC10: 0 | BD10: 0 | BE10: 0 | BF10: 0 | BG10: 0.2375 | BH10: 0.0194
A11: 河北 | B11: 保定 | C11: - | D11: 网络质量 | E11: 移网网络体验 | F11: 上网中断、不可用 | G11: 保定上网中断、不可用 | H11: 0.4344 | I11: 0.3258 | J11: 0.008 | K11: 0.1006 | L11: 120 | M11: 120 | N11: 0 | O11: 108 | P11: 81 | Q11: 81 | R11: 0 | S11: 2 | T11: 2 | U11: 0 | V11: 25 | W11: 8 | X11: 6 | Y11: 6 | Z11: 0 | AA11: 1 | AB11: 1 | AC11: 0 | AD11: 1 | AE11: 0.8974 | AF11: 35 | AG11: 39 | AH11: 0.925 | AI11: 37 | AJ11: 40 | AK11: 0.9189 | AL11: 34 | AM11: 37 | AN11: 0.8974 | AO11: 35 | AP11: 39 | AQ11: 0.925 | AR11: 37 | AS11: 40 | AT11: 0.9189 | AU11: 34 | AV11: 37 | AW11: 0 | AX11: 0 | AY11: 0 | AZ11: 0 | BA11: 0 | BB11: 0 | BC11: 0 | BD11: 0 | BE11: 0 | BF11: 0 | BG11: 0.2213 | BH11: -0.04
A12: 河北 | B12: 保定 | C12: - | D12: 网络质量 | E12: 移网网络体验 | F12: 上网网络卡顿 | G12: 保定上网网络卡顿 | H12: 0.6838 | I12: 0.6637 | J12: 0.0161 | K12: 0.004 | L12: 205 | M12: 205 | N12: 0 | O12: 170 | P12: 165 | Q12: 165 | R12: 0 | S12: 4 | T12: 4 | U12: 0 | V12: 1 | W12: 15 | X12: 14 | Y12: 14 | Z12: 0 | AA12: 0 | AB12: 0 | AC12: 0 | AD12: 1 | AE12: 0.9672 | AF12: 59 | AG12: 61 | AH12: 0.942 | AI12: 65 | AJ12: 69 | AK12: 1 | AL12: 60 | AM12: 60 | AN12: 0.9672 | AO12: 59 | AP12: 61 | AQ12: 0.942 | AR12: 65 | AS12: 69 | AT12: 1 | AU12: 60 | AV12: 60 | AW12: 0 | AX12: 0 | AY12: 0 | AZ12: 0 | BA12: 0 | BB12: 0 | BC12: 0 | BD12: 0 | BE12: 0 | BF12: 0 | BG12: 0.3217 | BH12: 0.0984
A13: 河北 | B13: 保定 | C13: - | D13: 网络质量 | E13: 移网网络体验 | F13: 漫游争议 | G13: 保定漫游争议 | H13: 0.004 | I13: 0.004 | J13: 0 | K13: 0 | L13: 1 | M13: 1 | N13: 0 | O13: 1 | P13: 1 | Q13: 1 | R13: 0 | S13: 0 | T13: 0 | U13: 0 | V13: 0 | W13: 0 | X13: 0 | Y13: 0 | Z13: 0 | AA13: 0 | AB13: 0 | AC13: 0 | AD13: 0 | AE13: 1 | AF13: 1 | AG13: 1 | AH13: 1 | AI13: 1 | AJ13: 1 | AK13: 1 | AL13: 1 | AM13: 1 | AN13: 1 | AO13: 1 | AP13: 1 | AQ13: 1 | AR13: 1 | AS13: 1 | AT13: 1 | AU13: 1 | AV13: 1 | AW13: 0 | AX13: 0 | AY13: 0 | AZ13: 0 | BA13: 0 | BB13: 0 | BC13: 0 | BD13: 0 | BE13: 0 | BF13: 0 | BG13: 0 | BH13: 0
A14: 河北 | B14: 保定 | C14: - | D14: 网络质量 | E14: 移网网络体验 | F14: 短信使用问题 | G14: 保定短信使用问题 | H14: 0.0523 | I14: 0.0282 | J14: 0.0201 | K14: 0.004 | L14: 13 | M14: 13 | N14: 0 | O14: 13 | P14: 7 | Q14: 7 | R14: 0 | S14: 5 | T14: 5 | U14: 0 | V14: 1 | W14: 2 | X14: 2 | Y14: 2 | Z14: 0 | AA14: 0 | AB14: 0 | AC14: 0 | AD14: 0 | AE14: 1 | AF14: 1 | AG14: 1 | AH14: 1 | AI14: 2 | AJ14: 2 | AK14: 1 | AL14: 1 | AM14: 1 | AN14: 1 | AO14: 1 | AP14: 1 | AQ14: 1 | AR14: 2 | AS14: 2 | AT14: 1 | AU14: 1 | AV14: 1 | AW14: 0 | AX14: 0 | AY14: 0 | AZ14: 0 | BA14: 0 | BB14: 0 | BC14: 0 | BD14: 0 | BE14: 0 | BF14: 0 | BG14: 0.6171 | BH14: 2
A15: 河北 | B15: 保定 | C15: - | D15: 网络质量 | E15: 移网网络体验 | F15: 语音通信问题 | G15: 保定语音通信问题 | H15: 0.7562 | I15: 0.72 | J15: 0.0241 | K15: 0.0121 | L15: 203 | M15: 203 | N15: 0 | O15: 188 | P15: 179 | Q15: 179 | R15: 0 | S15: 6 | T15: 6 | U15: 0 | V15: 3 | W15: 12 | X15: 12 | Y15: 12 | Z15: 0 | AA15: 0 | AB15: 0 | AC15: 0 | AD15: 0 | AE15: 0.8955 | AF15: 60 | AG15: 66 | AH15: 0.8026 | AI15: 61 | AJ15: 75 | AK15: 0.9531 | AL15: 61 | AM15: 63 | AN15: 0.8955 | AO15: 60 | AP15: 66 | AQ15: 0.8026 | AR15: 61 | AS15: 75 | AT15: 0.9531 | AU15: 61 | AV15: 63 | AW15: 1 | AX15: 0 | AY15: 0 | AZ15: 0 | BA15: 0 | BB15: 0 | BC15: 0 | BD15: 0 | BE15: 0 | BF15: 0 | BG15: 0.1549 | BH15: -0.0365
A16: 河北 | B16: 沧州 | C16: - | D16: 网络质量 | E16: 移网网络体验 | F16: -- | G16: 沧州-- | H16: 2.6029 | I16: 2.4782 | J16: 0.0473 | K16: 0.0774 | L16: 598 | M16: 598 | N16: 0 | O16: 605 | P16: 576 | Q16: 576 | R16: 0 | S16: 11 | T16: 11 | U16: 0 | V16: 18 | W16: 55 | X16: 54 | Y16: 54 | Z16: 0 | AA16: 0 | AB16: 0 | AC16: 0 | AD16: 1 | AE16: 0.9039 | AF16: 254 | AG16: 281 | AH16: 0.852 | AI16: 259 | AJ16: 304 | AK16: 0.966 | AL16: 256 | AM16: 265 | AN16: 0.9039 | AO16: 254 | AP16: 281 | AQ16: 0.852 | AR16: 259 | AS16: 304 | AT16: 0.966 | AU16: 256 | AV16: 265 | AW16: 0 | AX16: 0 | AY16: 0 | AZ16: 0 | BA16: 0 | BB16: 0 | BC16: 0 | BD16: 0 | BE16: 0 | BF16: 0 | BG16: 0.71 | BH16: -0.0212
A17: 河北 | B17: 邯郸 | C17: - | D17: 网络质量 | E17: 移网网络体验 | F17: -- | G17: 邯郸-- | H17: 1.484 | I17: 1.3591 | J17: 0.022 | K17: 0.1029 | L17: 416 | M17: 416 | N17: 0 | O17: 404 | P17: 370 | Q17: 370 | R17: 0 | S17: 6 | T17: 6 | U17: 0 | V17: 28 | W17: 35 | X17: 32 | Y17: 32 | Z17: 0 | AA17: 0 | AB17: 0 | AC17: 0 | AD17: 3 | AE17: 0.9122 | AF17: 187 | AG17: 205 | AH17: 0.91 | AI17: 192 | AJ17: 211 | AK17: 0.9741 | AL17: 188 | AM17: 193 | AN17: 0.9122 | AO17: 187 | AP17: 205 | AQ17: 0.91 | AR17: 192 | AS17: 211 | AT17: 0.9741 | AU17: 188 | AV17: 193 | AW17: 0 | AX17: 0 | AY17: 0 | AZ17: 0 | BA17: 0 | BB17: 0 | BC17: 0 | BD17: 0 | BE17: 0 | BF17: 0 | BG17: 0.3011 | BH17: -0.0108
A18: 河北 | B18: 秦皇岛 | C18: - | D18: 网络质量 | E18: 移网网络体验 | F18: -- | G18: 秦皇岛-- | H18: 2.0995 | I18: 1.9823 | J18: 0.0195 | K18: 0.0977 | L18: 201 | M18: 201 | N18: 0 | O18: 215 | P18: 203 | Q18: 203 | R18: 0 | S18: 2 | T18: 2 | U18: 0 | V18: 10 | W18: 11 | X18: 11 | Y18: 11 | Z18: 0 | AA18: 0 | AB18: 0 | AC18: 0 | AD18: 0 | AE18: 0.9494 | AF18: 75 | AG18: 79 | AH18: 0.8916 | AI18: 74 | AJ18: 83 | AK18: 0.973 | AL18: 72 | AM18: 74 | AN18: 0.9494 | AO18: 75 | AP18: 79 | AQ18: 0.8916 | AR18: 74 | AS18: 83 | AT18: 0.973 | AU18: 72 | AV18: 74 | AW18: 0 | AX18: 0 | AY18: 0 | AZ18: 0 | BA18: 0 | BB18: 0 | BC18: 0 | BD18: 0 | BE18: 0 | BF18: 0 | BG18: 0.2563 | BH18: 0.1047
A19: 河北 | B19: 廊坊 | C19: - | D19: 网络质量 | E19: 移网网络体验 | F19: -- | G19: 廊坊-- | H19: 2.4588 | I19: 2.2436 | J19: 0.0799 | K19: 0.1352 | L19: 409 | M19: 409 | N19: 0 | O19: 400 | P19: 365 | Q19: 365 | R19: 0 | S19: 13 | T19: 13 | U19: 0 | V19: 22 | W19: 43 | X19: 40 | Y19: 40 | Z19: 0 | AA19: 2 | AB19: 2 | AC19: 0 | AD19: 1 | AE19: 0.9497 | AF19: 170 | AG19: 179 | AH19: 0.849 | AI19: 163 | AJ19: 192 | AK19: 0.9882 | AL19: 167 | AM19: 169 | AN19: 0.9497 | AO19: 170 | AP19: 179 | AQ19: 0.849 | AR19: 163 | AS19: 192 | AT19: 0.9882 | AU19: 167 | AV19: 169 | AW19: 0 | AX19: 0 | AY19: 0 | AZ19: 0 | BA19: 0 | BB19: 0 | BC19: 0 | BD19: 0 | BE19: 0 | BF19: 0 | BG19: 0.3904 | BH19: 0.1051
A20: 河北 | B20: 唐山 | C20: - | D20: 网络质量 | E20: 移网网络体验 | F20: -- | G20: 唐山-- | H20: 2.2992 | I20: 2.1552 | J20: 0.0452 | K20: 0.0987 | L20: 549 | M20: 549 | N20: 0 | O20: 559 | P20: 524 | Q20: 524 | R20: 0 | S20: 11 | T20: 11 | U20: 0 | V20: 24 | W20: 44 | X20: 40 | Y20: 40 | Z20: 0 | AA20: 1 | AB20: 1 | AC20: 0 | AD20: 3 | AE20: 0.9151 | AF20: 248 | AG20: 270 | AH20: 0.8443 | AI20: 244 | AJ20: 288 | AK20: 0.9715 | AL20: 239 | AM20: 245 | AN20: 0.9151 | AO20: 248 | AP20: 270 | AQ20: 0.8443 | AR20: 244 | AS20: 288 | AT20: 0.9715 | AU20: 239 | AV20: 245 | AW20: 1 | AX20: 0 | AY20: 0 | AZ20: 0 | BA20: 0 | BB20: 0 | BC20: 0 | BD20: 0 | BE20: 0 | BF20: 0 | BG20: 0.1613 | BH20: 0.0144
A21: 河北 | B21: 承德 | C21: - | D21: 网络质量 | E21: 移网网络体验 | F21: -- | G21: 承德-- | H21: 2.3842 | I21: 2.2753 | J21: 0.0198 | K21: 0.089 | L21: 251 | M21: 251 | N21: 0 | O21: 241 | P21: 230 | Q21: 230 | R21: 0 | S21: 2 | T21: 2 | U21: 0 | V21: 9 | W21: 14 | X21: 14 | Y21: 14 | Z21: 0 | AA21: 0 | AB21: 0 | AC21: 0 | AD21: 0 | AE21: 0.9375 | AF21: 90 | AG21: 96 | AH21: 0.8911 | AI21: 90 | AJ21: 101 | AK21: 0.9762 | AL21: 82 | AM21: 84 | AN21: 0.9375 | AO21: 90 | AP21: 96 | AQ21: 0.8911 | AR21: 90 | AS21: 101 | AT21: 0.9762 | AU21: 82 | AV21: 84 | AW21: 0 | AX21: 0 | AY21: 0 | AZ21: 0 | BA21: 0 | BB21: 0 | BC21: 0 | BD21: 0 | BE21: 0 | BF21: 0 | BG21: 0.3281 | BH21: 0.0328
A22: 河北 | B22: 石家庄 | C22: - | D22: 网络质量 | E22: 移网网络体验 | F22: -- | G22: 石家庄-- | H22: 4.034 | I22: 3.6857 | J22: 0.1344 | K22: 0.2139 | L22: 1356 | M22: 1356 | N22: 0 | O22: 1471 | P22: 1344 | Q22: 1344 | R22: 0 | S22: 49 | T22: 49 | U22: 0 | V22: 78 | W22: 96 | X22: 82 | Y22: 82 | Z22: 0 | AA22: 5 | AB22: 5 | AC22: 0 | AD22: 9 | AE22: 0.9097 | AF22: 655 | AG22: 719 | AH22: 0.849 | AI22: 652 | AJ22: 767 | AK22: 0.9612 | AL22: 668 | AM22: 694 | AN22: 0.9097 | AO22: 655 | AP22: 719 | AQ22: 0.849 | AR22: 652 | AS22: 767 | AT22: 0.9612 | AU22: 668 | AV22: 694 | AW22: 1 | AX22: 0 | AY22: 0 | AZ22: 0 | BA22: 0 | BB22: 0 | BC22: 0 | BD22: 0 | BE22: 0 | BF22: 0 | BG22: 0.6597 | BH22: 0.0582
A23: 河北 | B23: 衡水 | C23: - | D23: 网络质量 | E23: 移网网络体验 | F23: -- | G23: 衡水-- | H23: 1.4978 | I23: 1.3676 | J23: 0.013 | K23: 0.1172 | L23: 238 | M23: 238 | N23: 0 | O23: 230 | P23: 210 | Q23: 210 | R23: 0 | S23: 2 | T23: 2 | U23: 0 | V23: 18 | W23: 17 | X23: 13 | Y23: 13 | Z23: 0 | AA23: 0 | AB23: 0 | AC23: 0 | AD23: 4 | AE23: 0.9242 | AF23: 61 | AG23: 65 | AH23: 0.8841 | AI23: 61 | AJ23: 68 | AK23: 0.9688 | AL23: 62 | AM23: 63 | AN23: 0.9242 | AO23: 61 | AP23: 65 | AQ23: 0.8841 | AR23: 61 | AS23: 68 | AT23: 0.9688 | AU23: 62 | AV23: 63 | AW23: 1 | AX23: 0 | AY23: 0 | AZ23: 0 | BA23: 0 | BB23: 0 | BC23: 0 | BD23: 0 | BE23: 0 | BF23: 0 | BG23: 0.3839 | BH23: -0.0265
A24: 河北 | B24: 张家口 | C24: - | D24: 网络质量 | E24: 移网网络体验 | F24: -- | G24: 张家口-- | H24: 2.0034 | I24: 1.8062 | J24: 0.0623 | K24: 0.1349 | L24: 195 | M24: 195 | N24: 0 | O24: 193 | P24: 174 | Q24: 174 | R24: 0 | S24: 6 | T24: 6 | U24: 0 | V24: 13 | W24: 19 | X24: 18 | Y24: 18 | Z24: 0 | AA24: 1 | AB24: 1 | AC24: 0 | AD24: 0 | AE24: 0.8793 | AF24: 51 | AG24: 58 | AH24: 0.8548 | AI24: 53 | AJ24: 62 | AK24: 0.9474 | AL24: 54 | AM24: 57 | AN24: 0.8793 | AO24: 51 | AP24: 58 | AQ24: 0.8548 | AR24: 53 | AS24: 62 | AT24: 0.9474 | AU24: 54 | AV24: 57 | AW24: 0 | AX24: 0 | AY24: 0 | AZ24: 0 | BA24: 0 | BB24: 0 | BC24: 0 | BD24: 0 | BE24: 0 | BF24: 0 | BG24: 0.5702 | BH24: -0.0547
A25: 河北 | B25: 邢台 | C25: - | D25: 网络质量 | E25: 移网网络体验 | F25: -- | G25: 邢台-- | H25: 1.4749 | I25: 1.2813 | J25: 0.0342 | K25: 0.1595 | L25: 288 | M25: 288 | N25: 0 | O25: 259 | P25: 225 | Q25: 225 | R25: 0 | S25: 6 | T25: 6 | U25: 0 | V25: 28 | W25: 25 | X25: 22 | Y25: 22 | Z25: 0 | AA25: 0 | AB25: 0 | AC25: 0 | AD25: 3 | AE25: 0.9573 | AF25: 112 | AG25: 117 | AH25: 0.8846 | AI25: 115 | AJ25: 130 | AK25: 0.9817 | AL25: 107 | AM25: 109 | AN25: 0.9573 | AO25: 112 | AP25: 117 | AQ25: 0.8846 | AR25: 115 | AS25: 130 | AT25: 0.9817 | AU25: 107 | AV25: 109 | AW25: 0 | AX25: 0 | AY25: 0 | AZ25: 0 | BA25: 0 | BB25: 0 | BC25: 0 | BD25: 0 | BE25: 0 | BF25: 0 | BG25: 0.0638 | BH25: 0.0484
A26: 河北 | B26: 雄安新区 | C26: - | D26: 网络质量 | E26: 移网网络体验 | F26: -- | G26: 雄安新区-- | H26: 3.1655 | I26: 2.8919 | J26: 0.0391 | K26: 0.2345 | L26: 69 | M26: 69 | N26: 0 | O26: 81 | P26: 74 | Q26: 74 | R26: 0 | S26: 1 | T26: 1 | U26: 0 | V26: 6 | W26: 12 | X26: 12 | Y26: 12 | Z26: 0 | AA26: 0 | AB26: 0 | AC26: 0 | AD26: 0 | AE26: 0.8378 | AF26: 31 | AG26: 35 | AH26: 0.7838 | AI26: 29 | AJ26: 35 | AK26: 0.8857 | AL26: 31 | AM26: 33 | AN26: 0.8378 | AO26: 31 | AP26: 35 | AQ26: 0.7838 | AR26: 29 | AS26: 35 | AT26: 0.8857 | AU26: 31 | AV26: 33 | AW26: 2 | AX26: 0 | AY26: 0 | AZ26: 0 | BA26: 0 | BB26: 0 | BC26: 0 | BD26: 0 | BE26: 0 | BF26: 0 | BG26: -0.0008 | BH26: -0.0037
A27: 河北 | B27: 邢台 | C27: - | D27: 网络质量 | E27: 移网网络体验 | F27: 上网中断、不可用 | G27: 邢台上网中断、不可用 | H27: 0.4499 | I27: 0.3246 | J27: 0.0057 | K27: 0.1196 | L27: 80 | M27: 80 | N27: 0 | O27: 79 | P27: 57 | Q27: 57 | R27: 0 | S27: 1 | T27: 1 | U27: 0 | V27: 21 | W27: 7 | X27: 5 | Y27: 5 | Z27: 0 | AA27: 0 | AB27: 0 | AC27: 0 | AD27: 2 | AE27: 0.9231 | AF27: 36 | AG27: 39 | AH27: 0.7857 | AI27: 33 | AJ27: 42 | AK27: 0.9714 | AL27: 34 | AM27: 35 | AN27: 0.9231 | AO27: 36 | AP27: 39 | AQ27: 0.7857 | AR27: 33 | AS27: 42 | AT27: 0.9714 | AU27: 34 | AV27: 35 | AW27: 0 | AX27: 0 | AY27: 0 | AZ27: 0 | BA27: 0 | BB27: 0 | BC27: 0 | BD27: 0 | BE27: 0 | BF27: 0 | BG27: 0.172 | BH27: 0.0186
A28: 河北 | B28: 衡水 | C28: - | D28: 网络质量 | E28: 移网网络体验 | F28: 上网中断、不可用 | G28: 衡水上网中断、不可用 | H28: 0.4493 | I28: 0.3386 | J28: 0 | K28: 0.1107 | L28: 72 | M28: 72 | N28: 0 | O28: 69 | P28: 52 | Q28: 52 | R28: 0 | S28: 0 | T28: 0 | U28: 0 | V28: 17 | W28: 4 | X28: 1 | Y28: 1 | Z28: 0 | AA28: 0 | AB28: 0 | AC28: 0 | AD28: 3 | AE28: 1 | AF28: 22 | AG28: 22 | AH28: 0.9583 | AI28: 23 | AJ28: 24 | AK28: 1 | AL28: 21 | AM28: 21 | AN28: 1 | AO28: 22 | AP28: 22 | AQ28: 0.9583 | AR28: 23 | AS28: 24 | AT28: 1 | AU28: 21 | AV28: 21 | AW28: 0 | AX28: 0 | AY28: 0 | AZ28: 0 | BA28: 0 | BB28: 0 | BC28: 0 | BD28: 0 | BE28: 0 | BF28: 0 | BG28: 0.6028 | BH28: 0.0556
A29: 河北 | B29: 张家口 | C29: - | D29: 网络质量 | E29: 移网网络体验 | F29: 上网中断、不可用 | G29: 张家口上网中断、不可用 | H29: 0.6124 | I29: 0.4879 | J29: 0 | K29: 0.1246 | L29: 61 | M29: 61 | N29: 0 | O29: 59 | P29: 47 | Q29: 47 | R29: 0 | S29: 0 | T29: 0 | U29: 0 | V29: 12 | W29: 4 | X29: 4 | Y29: 4 | Z29: 0 | AA29: 0 | AB29: 0 | AC29: 0 | AD29: 0 | AE29: 1 | AF29: 18 | AG29: 18 | AH29: 1 | AI29: 18 | AJ29: 18 | AK29: 1 | AL29: 18 | AM29: 18 | AN29: 1 | AO29: 18 | AP29: 18 | AQ29: 1 | AR29: 18 | AS29: 18 | AT29: 1 | AU29: 18 | AV29: 18 | AW29: 0 | AX29: 0 | AY29: 0 | AZ29: 0 | BA29: 0 | BB29: 0 | BC29: 0 | BD29: 0 | BE29: 0 | BF29: 0 | BG29: 1.1689 | BH29: 0.1
A30: 河北 | B30: 承德 | C30: - | D30: 网络质量 | E30: 移网网络体验 | F30: 上网中断、不可用 | G30: 承德上网中断、不可用 | H30: 0.6826 | I30: 0.6035 | J30: 0.0099 | K30: 0.0692 | L30: 73 | M30: 73 | N30: 0 | O30: 69 | P30: 61 | Q30: 61 | R30: 0 | S30: 1 | T30: 1 | U30: 0 | V30: 7 | W30: 4 | X30: 4 | Y30: 4 | Z30: 0 | AA30: 0 | AB30: 0 | AC30: 0 | AD30: 0 | AE30: 0.9429 | AF30: 33 | AG30: 35 | AH30: 0.9189 | AI30: 34 | AJ30: 37 | AK30: 0.9677 | AL30: 30 | AM30: 31 | AN30: 0.9429 | AO30: 33 | AP30: 35 | AQ30: 0.9189 | AR30: 34 | AS30: 37 | AT30: 0.9677 | AU30: 30 | AV30: 31 | AW30: 0 | AX30: 0 | AY30: 0 | AZ30: 0 | BA30: 0 | BB30: 0 | BC30: 0 | BD30: 0 | BE30: 0 | BF30: 0 | BG30: 0.1866 | BH30: 0.0607
A31: 河北 | B31: 石家庄 | C31: - | D31: 网络质量 | E31: 移网网络体验 | F31: 上网中断、不可用 | G31: 石家庄上网中断、不可用 | H31: 0.7267 | I31: 0.5841 | J31: 0.0219 | K31: 0.1207 | L31: 268 | M31: 268 | N31: 0 | O31: 265 | P31: 213 | Q31: 213 | R31: 0 | S31: 8 | T31: 8 | U31: 0 | V31: 44 | W31: 18 | X31: 11 | Y31: 11 | Z31: 0 | AA31: 0 | AB31: 0 | AC31: 0 | AD31: 7 | AE31: 0.9348 | AF31: 129 | AG31: 138 | AH31: 0.9007 | AI31: 136 | AJ31: 151 | AK31: 0.9926 | AL31: 134 | AM31: 135 | AN31: 0.9348 | AO31: 129 | AP31: 138 | AQ31: 0.9007 | AR31: 136 | AS31: 151 | AT31: 0.9926 | AU31: 134 | AV31: 135 | AW31: 0 | AX31: 0 | AY31: 0 | AZ31: 0 | BA31: 0 | BB31: 0 | BC31: 0 | BD31: 0 | BE31: 0 | BF31: 0 | BG31: 0.3937 | BH31: 0.055
A32: 河北 | B32: 雄安新区 | C32: - | D32: 网络质量 | E32: 移网网络体验 | F32: 上网中断、不可用 | G32: 雄安新区上网中断、不可用 | H32: 0.8988 | I32: 0.7034 | J32: 0 | K32: 0.1954 | L32: 19 | M32: 19 | N32: 0 | O32: 23 | P32: 18 | Q32: 18 | R32: 0 | S32: 0 | T32: 0 | U32: 0 | V32: 5 | W32: 3 | X32: 3 | Y32: 3 | Z32: 0 | AA32: 0 | AB32: 0 | AC32: 0 | AD32: 0 | AE32: 0.6 | AF32: 3 | AG32: 5 | AH32: 0.6 | AI32: 3 | AJ32: 5 | AK32: 1 | AL32: 4 | AM32: 4 | AN32: 0.6 | AO32: 3 | AP32: 5 | AQ32: 0.6 | AR32: 3 | AS32: 5 | AT32: 1 | AU32: 4 | AV32: 4 | AW32: 0 | AX32: 0 | AY32: 0 | AZ32: 0 | BA32: 0 | BB32: 0 | BC32: 0 | BD32: 0 | BE32: 0 | BF32: 0 | BG32: 0.6213 | BH32: -0.3
A33: 河北 | B33: 唐山 | C33: - | D33: 网络质量 | E33: 移网网络体验 | F33: 上网中断、不可用 | G33: 唐山上网中断、不可用 | H33: 0.6293 | I33: 0.5429 | J33: 0.0082 | K33: 0.0781 | L33: 152 | M33: 152 | N33: 0 | O33: 153 | P33: 132 | Q33: 132 | R33: 0 | S33: 2 | T33: 2 | U33: 0 | V33: 19 | W33: 10 | X33: 7 | Y33: 7 | Z33: 0 | AA33: 0 | AB33: 0 | AC33: 0 | AD33: 3 | AE33: 0.9054 | AF33: 67 | AG33: 74 | AH33: 0.8354 | AI33: 66 | AJ33: 79 | AK33: 0.9846 | AL33: 64 | AM33: 65 | AN33: 0.9054 | AO33: 67 | AP33: 74 | AQ33: 0.8354 | AR33: 66 | AS33: 79 | AT33: 0.9846 | AU33: 64 | AV33: 65 | AW33: 0 | AX33: 0 | AY33: 0 | AZ33: 0 | BA33: 0 | BB33: 0 | BC33: 0 | BD33: 0 | BE33: 0 | BF33: 0 | BG33: 0.304 | BH33: 0.0347
A34: 河北 | B34: 秦皇岛 | C34: - | D34: 网络质量 | E34: 移网网络体验 | F34: 上网中断、不可用 | G34: 秦皇岛上网中断、不可用 | H34: 0.6054 | I34: 0.5371 | J34: 0 | K34: 0.0684 | L34: 55 | M34: 55 | N34: 0 | O34: 62 | P34: 55 | Q34: 55 | R34: 0 | S34: 0 | T34: 0 | U34: 0 | V34: 7 | W34: 2 | X34: 2 | Y34: 2 | Z34: 0 | AA34: 0 | AB34: 0 | AC34: 0 | AD34: 0 | AE34: 0.8261 | AF34: 19 | AG34: 23 | AH34: 0.7826 | AI34: 18 | AJ34: 23 | AK34: 0.9091 | AL34: 20 | AM34: 22 | AN34: 0.8261 | AO34: 19 | AP34: 23 | AQ34: 0.7826 | AR34: 18 | AS34: 23 | AT34: 0.9091 | AU34: 20 | AV34: 22 | AW34: 0 | AX34: 0 | AY34: 0 | AZ34: 0 | BA34: 0 | BB34: 0 | BC34: 0 | BD34: 0 | BE34: 0 | BF34: 0 | BG34: 0.3181 | BH34: 0.0326
A35: 河北 | B35: 廊坊 | C35: - | D35: 网络质量 | E35: 移网网络体验 | F35: 上网中断、不可用 | G35: 廊坊上网中断、不可用 | H35: 0.6454 | I35: 0.5348 | J35: 0.0123 | K35: 0.0984 | L35: 113 | M35: 113 | N35: 0 | O35: 105 | P35: 87 | Q35: 87 | R35: 0 | S35: 2 | T35: 2 | U35: 0 | V35: 16 | W35: 6 | X35: 5 | Y35: 5 | Z35: 0 | AA35: 0 | AB35: 0 | AC35: 0 | AD35: 1 | AE35: 1 | AF35: 37 | AG35: 37 | AH35: 0.8182 | AI35: 36 | AJ35: 44 | AK35: 0.9722 | AL35: 35 | AM35: 36 | AN35: 1 | AO35: 37 | AP35: 37 | AQ35: 0.8182 | AR35: 36 | AS35: 44 | AT35: 0.9722 | AU35: 35 | AV35: 36 | AW35: 0 | AX35: 0 | AY35: 0 | AZ35: 0 | BA35: 0 | BB35: 0 | BC35: 0 | BD35: 0 | BE35: 0 | BF35: 0 | BG35: 0.43 | BH35: 0.1786
A36: 河北 | B36: 沧州 | C36: - | D36: 网络质量 | E36: 移网网络体验 | F36: 上网中断、不可用 | G36: 沧州上网中断、不可用 | H36: 0.5722 | I36: 0.4991 | J36: 0.0129 | K36: 0.0602 | L36: 131 | M36: 131 | N36: 0 | O36: 133 | P36: 116 | Q36: 116 | R36: 0 | S36: 3 | T36: 3 | U36: 0 | V36: 14 | W36: 9 | X36: 8 | Y36: 8 | Z36: 0 | AA36: 0 | AB36: 0 | AC36: 0 | AD36: 1 | AE36: 0.9077 | AF36: 59 | AG36: 65 | AH36: 0.9014 | AI36: 64 | AJ36: 71 | AK36: 1 | AL36: 59 | AM36: 59 | AN36: 0.9077 | AO36: 59 | AP36: 65 | AQ36: 0.9014 | AR36: 64 | AS36: 71 | AT36: 1 | AU36: 59 | AV36: 59 | AW36: 0 | AX36: 0 | AY36: 0 | AZ36: 0 | BA36: 0 | BB36: 0 | BC36: 0 | BD36: 0 | BE36: 0 | BF36: 0 | BG36: 0.7643 | BH36: -0.0122
A37: 河北 | B37: 邯郸 | C37: - | D37: 网络质量 | E37: 移网网络体验 | F37: 上网中断、不可用 | G37: =B37&F37 -> 邯郸上网中断、不可用 | H37: 0.4371 | I37: 0.3453 | J37: 0.0037 | K37: 0.0882 | L37: 130 | M37: 130 | N37: 0 | O37: 119 | P37: 94 | Q37: 94 | R37: 0 | S37: 1 | T37: 1 | U37: 0 | V37: 24 | W37: 10 | X37: 7 | Y37: 7 | Z37: 0 | AA37: 0 | AB37: 0 | AC37: 0 | AD37: 3 | AE37: 0.9344 | AF37: 57 | AG37: 61 | AH37: 0.9194 | AI37: 57 | AJ37: 62 | AK37: 0.9828 | AL37: 57 | AM37: 58 | AN37: 0.9344 | AO37: 57 | AP37: 61 | AQ37: 0.9194 | AR37: 57 | AS37: 62 | AT37: 0.9828 | AU37: 57 | AV37: 58 | AW37: 0 | AX37: 0 | AY37: 0 | AZ37: 0 | BA37: 0 | BB37: 0 | BC37: 0 | BD37: 0 | BE37: 0 | BF37: 0 | BG37: 0.35 | BH37: 0.0679
A38: 河北 | B38: 邢台 | C38: - | D38: 网络质量 | E38: 移网网络体验 | F38: 上网网络卡顿 | G38: 邢台上网网络卡顿 | H38: 0.4328 | I38: 0.4043 | J38: 0.0171 | K38: 0.0114 | L38: 90 | M38: 90 | N38: 0 | O38: 76 | P38: 71 | Q38: 71 | R38: 0 | S38: 3 | T38: 3 | U38: 0 | V38: 2 | W38: 8 | X38: 8 | Y38: 8 | Z38: 0 | AA38: 0 | AB38: 0 | AC38: 0 | AD38: 0 | AE38: 1 | AF38: 28 | AG38: 28 | AH38: 1 | AI38: 37 | AJ38: 37 | AK38: 1 | AL38: 25 | AM38: 25 | AN38: 1 | AO38: 28 | AP38: 28 | AQ38: 1 | AR38: 37 | AS38: 37 | AT38: 1 | AU38: 25 | AV38: 25 | AW38: 0 | AX38: 0 | AY38: 0 | AZ38: 0 | BA38: 0 | BB38: 0 | BC38: 0 | BD38: 0 | BE38: 0 | BF38: 0 | BG38: 0.0208 | BH38: 0.0333
A39: 河北 | B39: 沧州 | C39: - | D39: 网络质量 | E39: 移网网络体验 | F39: 上网网络卡顿 | G39: 沧州上网网络卡顿 | H39: 0.6368 | I39: 0.6325 | J39: 0.0043 | K39: 0 | L39: 153 | M39: 153 | N39: 0 | O39: 148 | P39: 147 | Q39: 147 | R39: 0 | S39: 1 | T39: 1 | U39: 0 | V39: 0 | W39: 13 | X39: 13 | Y39: 13 | Z39: 0 | AA39: 0 | AB39: 0 | AC39: 0 | AD39: 0 | AE39: 0.9333 | AF39: 70 | AG39: 75 | AH39: 0.939 | AI39: 77 | AJ39: 82 | AK39: 0.9583 | AL39: 69 | AM39: 72 | AN39: 0.9333 | AO39: 70 | AP39: 75 | AQ39: 0.939 | AR39: 77 | AS39: 82 | AT39: 0.9583 | AU39: 69 | AV39: 72 | AW39: 0 | AX39: 0 | AY39: 0 | AZ39: 0 | BA39: 0 | BB39: 0 | BC39: 0 | BD39: 0 | BE39: 0 | BF39: 0 | BG39: 0.3265 | BH39: -0.0192
A40: 河北 | B40: 邯郸 | C40: - | D40: 网络质量 | E40: 移网网络体验 | F40: 上网网络卡顿 | G40: 邯郸上网网络卡顿 | H40: 0.4077 | I40: 0.393 | J40: 0.011 | K40: 0.0037 | L40: 118 | M40: 118 | N40: 0 | O40: 111 | P40: 107 | Q40: 107 | R40: 0 | S40: 3 | T40: 3 | U40: 0 | V40: 1 | W40: 12 | X40: 12 | Y40: 12 | Z40: 0 | AA40: 0 | AB40: 0 | AC40: 0 | AD40: 0 | AE40: 0.8929 | AF40: 50 | AG40: 56 | AH40: 0.8833 | AI40: 53 | AJ40: 60 | AK40: 0.9423 | AL40: 49 | AM40: 52 | AN40: 0.8929 | AO40: 50 | AP40: 56 | AQ40: 0.8833 | AR40: 53 | AS40: 60 | AT40: 0.9423 | AU40: 49 | AV40: 52 | AW40: 0 | AX40: 0 | AY40: 0 | AZ40: 0 | BA40: 0 | BB40: 0 | BC40: 0 | BD40: 0 | BE40: 0 | BF40: 0 | BG40: 0.1665 | BH40: -0.0357
A41: 河北 | B41: 唐山 | C41: - | D41: 网络质量 | E41: 移网网络体验 | F41: 上网网络卡顿 | G41: 唐山上网网络卡顿 | H41: 0.9131 | I41: 0.8966 | J41: 0.0123 | K41: 0.0041 | L41: 222 | M41: 222 | N41: 0 | O41: 222 | P41: 218 | Q41: 218 | R41: 0 | S41: 3 | T41: 3 | U41: 0 | V41: 1 | W41: 15 | X41: 15 | Y41: 15 | Z41: 0 | AA41: 0 | AB41: 0 | AC41: 0 | AD41: 0 | AE41: 0.9057 | AF41: 96 | AG41: 106 | AH41: 0.8545 | AI41: 94 | AJ41: 110 | AK41: 0.9798 | AL41: 97 | AM41: 99 | AN41: 0.9057 | AO41: 96 | AP41: 106 | AQ41: 0.8545 | AR41: 94 | AS41: 110 | AT41: 0.9798 | AU41: 97 | AV41: 99 | AW41: 0 | AX41: 0 | AY41: 0 | AZ41: 0 | BA41: 0 | BB41: 0 | BC41: 0 | BD41: 0 | BE41: 0 | BF41: 0 | BG41: 0.0542 | BH41: 0.0202
A42: 河北 | B42: 承德 | C42: - | D42: 网络质量 | E42: 移网网络体验 | F42: 上网网络卡顿 | G42: 承德上网网络卡顿 | H42: 0.6628 | I42: 0.6529 | J42: 0 | K42: 0.0099 | L42: 71 | M42: 71 | N42: 0 | O42: 67 | P42: 66 | Q42: 66 | R42: 0 | S42: 0 | T42: 0 | U42: 0 | V42: 1 | W42: 2 | X42: 2 | Y42: 2 | Z42: 0 | AA42: 0 | AB42: 0 | AC42: 0 | AD42: 0 | AE42: 1 | AF42: 19 | AG42: 19 | AH42: 0.9 | AI42: 18 | AJ42: 20 | AK42: 1 | AL42: 16 | AM42: 16 | AN42: 1 | AO42: 19 | AP42: 19 | AQ42: 0.9 | AR42: 18 | AS42: 20 | AT42: 1 | AU42: 16 | AV42: 16 | AW42: 0 | AX42: 0 | AY42: 0 | AZ42: 0 | BA42: 0 | BB42: 0 | BC42: 0 | BD42: 0 | BE42: 0 | BF42: 0 | BG42: 0.2609 | BH42: 0
A43: 河北 | B43: 石家庄 | C43: - | D43: 网络质量 | E43: 移网网络体验 | F43: 上网网络卡顿 | G43: 石家庄上网网络卡顿 | H43: 1.0147 | I43: 0.9763 | J43: 0.0329 | K43: 0.0055 | L43: 360 | M43: 360 | N43: 0 | O43: 370 | P43: 356 | Q43: 356 | R43: 0 | S43: 12 | T43: 12 | U43: 0 | V43: 2 | W43: 26 | X43: 26 | Y43: 26 | Z43: 0 | AA43: 0 | AB43: 0 | AC43: 0 | AD43: 0 | AE43: 0.9444 | AF43: 187 | AG43: 198 | AH43: 0.8883 | AI43: 183 | AJ43: 206 | AK43: 0.9794 | AL43: 190 | AM43: 194 | AN43: 0.9444 | AO43: 187 | AP43: 198 | AQ43: 0.8883 | AR43: 183 | AS43: 206 | AT43: 0.9794 | AU43: 190 | AV43: 194 | AW43: 0 | AX43: 0 | AY43: 0 | AZ43: 0 | BA43: 0 | BB43: 0 | BC43: 0 | BD43: 0 | BE43: 0 | BF43: 0 | BG43: 0.3088 | BH43: 0.12
A44: 河北 | B44: 秦皇岛 | C44: - | D44: 网络质量 | E44: 移网网络体验 | F44: 上网网络卡顿 | G44: 秦皇岛上网网络卡顿 | H44: 0.6543 | I44: 0.6445 | J44: 0.0098 | K44: 0 | L44: 67 | M44: 67 | N44: 0 | O44: 67 | P44: 66 | Q44: 66 | R44: 0 | S44: 1 | T44: 1 | U44: 0 | V44: 0 | W44: 6 | X44: 6 | Y44: 6 | Z44: 0 | AA44: 0 | AB44: 0 | AC44: 0 | AD44: 0 | AE44: 1 | AF44: 18 | AG44: 18 | AH44: 0.9 | AI44: 18 | AJ44: 20 | AK44: 1 | AL44: 16 | AM44: 16 | AN44: 1 | AO44: 18 | AP44: 18 | AQ44: 0.9 | AR44: 18 | AS44: 20 | AT44: 1 | AU44: 16 | AV44: 16 | AW44: 0 | AX44: 0 | AY44: 0 | AZ44: 0 | BA44: 0 | BB44: 0 | BC44: 0 | BD44: 0 | BE44: 0 | BF44: 0 | BG44: 0.1158 | BH44: 0.0417
A45: 河北 | B45: 廊坊 | C45: - | D45: 网络质量 | E45: 移网网络体验 | F45: 上网网络卡顿 | G45: 廊坊上网网络卡顿 | H45: 0.8175 | I45: 0.7684 | J45: 0.0369 | K45: 0.0123 | L45: 136 | M45: 136 | N45: 0 | O45: 133 | P45: 125 | Q45: 125 | R45: 0 | S45: 6 | T45: 6 | U45: 0 | V45: 2 | W45: 21 | X45: 20 | Y45: 20 | Z45: 0 | AA45: 1 | AB45: 1 | AC45: 0 | AD45: 0 | AE45: 0.8986 | AF45: 62 | AG45: 69 | AH45: 0.9014 | AI45: 64 | AJ45: 71 | AK45: 1 | AL45: 62 | AM45: 62 | AN45: 0.8986 | AO45: 62 | AP45: 69 | AQ45: 0.9014 | AR45: 64 | AS45: 71 | AT45: 1 | AU45: 62 | AV45: 62 | AW45: 0 | AX45: 0 | AY45: 0 | AZ45: 0 | BA45: 0 | BB45: 0 | BC45: 0 | BD45: 0 | BE45: 0 | BF45: 0 | BG45: 0.2131 | BH45: 0.0137
A46: 河北 | B46: 雄安新区 | C46: - | D46: 网络质量 | E46: 移网网络体验 | F46: 上网网络卡顿 | G46: 雄安新区上网网络卡顿 | H46: 1.2506 | I46: 1.2506 | J46: 0 | K46: 0 | L46: 23 | M46: 23 | N46: 0 | O46: 32 | P46: 32 | Q46: 32 | R46: 0 | S46: 0 | T46: 0 | U46: 0 | V46: 0 | W46: 6 | X46: 6 | Y46: 6 | Z46: 0 | AA46: 0 | AB46: 0 | AC46: 0 | AD46: 0 | AE46: 0.8667 | AF46: 13 | AG46: 15 | AH46: 0.8 | AI46: 12 | AJ46: 15 | AK46: 0.8667 | AL46: 13 | AM46: 15 | AN46: 0.8667 | AO46: 13 | AP46: 15 | AQ46: 0.8 | AR46: 12 | AS46: 15 | AT46: 0.8667 | AU46: 13 | AV46: 15 | AW46: 0 | AX46: 0 | AY46: 0 | AZ46: 0 | BA46: 0 | BB46: 0 | BC46: 0 | BD46: 0 | BE46: 0 | BF46: 0 | BG46: -0.3421 | BH46: -0.0203
A47: 河北 | B47: 衡水 | C47: - | D47: 网络质量 | E47: 移网网络体验 | F47: 上网网络卡顿 | G47: 衡水上网网络卡顿 | H47: 0.534 | I47: 0.521 | J47: 0.013 | K47: 0 | L47: 83 | M47: 83 | N47: 0 | O47: 82 | P47: 80 | Q47: 80 | R47: 0 | S47: 2 | T47: 2 | U47: 0 | V47: 0 | W47: 5 | X47: 5 | Y47: 5 | Z47: 0 | AA47: 0 | AB47: 0 | AC47: 0 | AD47: 0 | AE47: 0.9524 | AF47: 20 | AG47: 21 | AH47: 0.9 | AI47: 18 | AJ47: 20 | AK47: 1 | AL47: 21 | AM47: 21 | AN47: 0.9524 | AO47: 20 | AP47: 21 | AQ47: 0.9 | AR47: 18 | AS47: 20 | AT47: 1 | AU47: 21 | AV47: 21 | AW47: 0 | AX47: 0 | AY47: 0 | AZ47: 0 | BA47: 0 | BB47: 0 | BC47: 0 | BD47: 0 | BE47: 0 | BF47: 0 | BG47: 0.7427 | BH47: -0.0476
A48: 河北 | B48: 张家口 | C48: - | D48: 网络质量 | E48: 移网网络体验 | F48: 上网网络卡顿 | G48: 张家口上网网络卡顿 | H48: 0.4879 | I48: 0.436 | J48: 0.0415 | K48: 0.0104 | L48: 42 | M48: 42 | N48: 0 | O48: 47 | P48: 42 | Q48: 42 | R48: 0 | S48: 4 | T48: 4 | U48: 0 | V48: 1 | W48: 6 | X48: 5 | Y48: 5 | Z48: 0 | AA48: 1 | AB48: 1 | AC48: 0 | AD48: 0 | AE48: 0.8125 | AF48: 13 | AG48: 16 | AH48: 0.8235 | AI48: 14 | AJ48: 17 | AK48: 0.9375 | AL48: 15 | AM48: 16 | AN48: 0.8125 | AO48: 13 | AP48: 16 | AQ48: 0.8235 | AR48: 14 | AS48: 17 | AT48: 0.9375 | AU48: 15 | AV48: 16 | AW48: 0 | AX48: 0 | AY48: 0 | AZ48: 0 | BA48: 0 | BB48: 0 | BC48: 0 | BD48: 0 | BE48: 0 | BF48: 0 | BG48: 0.2276 | BH48: -0.0714
A49: 河北 | B49: 张家口 | C49: - | D49: 网络质量 | E49: 移网网络体验 | F49: 漫游争议 | G49: 张家口漫游争议 | H49: 0.0104 | I49: 0.0104 | J49: 0 | K49: 0 | L49: 1 | M49: 1 | N49: 0 | O49: 1 | P49: 1 | Q49: 1 | R49: 0 | S49: 0 | T49: 0 | U49: 0 | V49: 0 | W49: 0 | X49: 0 | Y49: 0 | Z49: 0 | AA49: 0 | AB49: 0 | AC49: 0 | AD49: 0 | AE49: 1 | AF49: 1 | AG49: 1 | AH49: 1 | AI49: 1 | AJ49: 1 | AK49: 1 | AL49: 1 | AM49: 1 | AN49: 1 | AO49: 1 | AP49: 1 | AQ49: 1 | AR49: 1 | AS49: 1 | AT49: 1 | AU49: 1 | AV49: 1 | AW49: 0 | AX49: 0 | AY49: 0 | AZ49: 0 | BA49: 0 | BB49: 0 | BC49: 0 | BD49: 0 | BE49: 0 | BF49: 0 | BG49: 0 | BH49: 0
A50: 河北 | B50: 唐山 | C50: - | D50: 网络质量 | E50: 移网网络体验 | F50: 漫游争议 | G50: 唐山漫游争议 | H50: 0.0082 | I50: 0.0082 | J50: 0 | K50: 0 | L50: 1 | M50: 1 | N50: 0 | O50: 2 | P50: 2 | Q50: 2 | R50: 0 | S50: 0 | T50: 0 | U50: 0 | V50: 0 | W50: 0 | X50: 0 | Y50: 0 | Z50: 0 | AA50: 0 | AB50: 0 | AC50: 0 | AD50: 0 | AE50: 1 | AF50: 1 | AG50: 1 | AH50: 1 | AI50: 1 | AJ50: 1 | AK50: 1 | AL50: 1 | AM50: 1 | AN50: 1 | AO50: 1 | AP50: 1 | AQ50: 1 | AR50: 1 | AS50: 1 | AT50: 1 | AU50: 1 | AV50: 1 | AW50: 0 | AX50: 0 | AY50: 0 | AZ50: 0 | BA50: 0 | BB50: 0 | BC50: 0 | BD50: 0 | BE50: 0 | BF50: 0 | BG50: 0.9943 | BH50: 0
A51: 河北 | B51: 秦皇岛 | C51: - | D51: 网络质量 | E51: 移网网络体验 | F51: 漫游争议 | G51: 秦皇岛漫游争议 | H51: 0.0098 | I51: 0.0098 | J51: 0 | K51: 0 | L51: 1 | M51: 1 | N51: 0 | O51: 1 | P51: 1 | Q51: 1 | R51: 0 | S51: 0 | T51: 0 | U51: 0 | V51: 0 | W51: 0 | X51: 0 | Y51: 0 | Z51: 0 | AA51: 0 | AB51: 0 | AC51: 0 | AD51: 0 | AE51: 1 | AF51: 1 | AG51: 1 | AH51: 1 | AI51: 1 | AJ51: 1 | AK51: 1 | AL51: 1 | AM51: 1 | AN51: 1 | AO51: 1 | AP51: 1 | AQ51: 1 | AR51: 1 | AS51: 1 | AT51: 1 | AU51: 1 | AV51: 1 | AW51: 0 | AX51: 0 | AY51: 0 | AZ51: 0 | BA51: 0 | BB51: 0 | BC51: 0 | BD51: 0 | BE51: 0 | BF51: 0 | BG51: 0 | BH51: 0
A52: 河北 | B52: 廊坊 | C52: - | D52: 网络质量 | E52: 移网网络体验 | F52: 漫游争议 | G52: 廊坊漫游争议 | H52: 0 | I52: 0 | J52: 0 | K52: 0 | L52: 0 | M52: 0 | N52: 0 | O52: 0 | P52: 0 | Q52: 0 | R52: 0 | S52: 0 | T52: 0 | U52: 0 | V52: 0 | W52: 0 | X52: 0 | Y52: 0 | Z52: 0 | AA52: 0 | AB52: 0 | AC52: 0 | AD52: 0 | AE52: 0 | AF52: 0 | AG52: 0 | AH52: 0 | AI52: 0 | AJ52: 0 | AK52: 0 | AL52: 0 | AM52: 0 | AN52: 0 | AO52: 0 | AP52: 0 | AQ52: 0 | AR52: 0 | AS52: 0 | AT52: 0 | AU52: 0 | AV52: 0 | AW52: 0 | AX52: 0 | AY52: 0 | AZ52: 0 | BA52: 0 | BB52: 0 | BC52: 0 | BD52: 0 | BE52: 0 | BF52: 0 | BG52: -1 | BH52: 0
A53: 河北 | B53: 石家庄 | C53: - | D53: 网络质量 | E53: 移网网络体验 | F53: 漫游争议 | G53: 石家庄漫游争议 | H53: 0.0192 | I53: 0.011 | J53: 0.0082 | K53: 0 | L53: 6 | M53: 6 | N53: 0 | O53: 7 | P53: 4 | Q53: 4 | R53: 0 | S53: 3 | T53: 3 | U53: 0 | V53: 0 | W53: 1 | X53: 0 | Y53: 0 | Z53: 0 | AA53: 1 | AB53: 1 | AC53: 0 | AD53: 0 | AE53: 1 | AF53: 3 | AG53: 3 | AH53: 1 | AI53: 3 | AJ53: 3 | AK53: 1 | AL53: 3 | AM53: 3 | AN53: 1 | AO53: 3 | AP53: 3 | AQ53: 1 | AR53: 3 | AS53: 3 | AT53: 1 | AU53: 3 | AV53: 3 | AW53: 0 | AX53: 0 | AY53: 0 | AZ53: 0 | BA53: 0 | BB53: 0 | BC53: 0 | BD53: 0 | BE53: 0 | BF53: 0 | BG53: 0.7395 | BH53: 0
A54: 河北 | B54: 邯郸 | C54: - | D54: 网络质量 | E54: 移网网络体验 | F54: 漫游争议 | G54: 邯郸漫游争议 | H54: 0.0073 | I54: 0.0073 | J54: 0 | K54: 0 | L54: 1 | M54: 1 | N54: 0 | O54: 2 | P54: 2 | Q54: 2 | R54: 0 | S54: 0 | T54: 0 | U54: 0 | V54: 0 | W54: 0 | X54: 0 | Y54: 0 | Z54: 0 | AA54: 0 | AB54: 0 | AC54: 0 | AD54: 0 | AE54: 0 | AF54: 0 | AG54: 0 | AH54: 0 | AI54: 0 | AJ54: 0 | AK54: 0 | AL54: 0 | AM54: 0 | AN54: 0 | AO54: 0 | AP54: 0 | AQ54: 0 | AR54: 0 | AS54: 0 | AT54: 0 | AU54: 0 | AV54: 0 | AW54: 0 | AX54: 0 | AY54: 0 | AZ54: 0 | BA54: 0 | BB54: 0 | BC54: 0 | BD54: 0 | BE54: 0 | BF54: 0 | BG54: 0 | BH54: 0
A55: 河北 | B55: 唐山 | C55: - | D55: 网络质量 | E55: 移网网络体验 | F55: 短信使用问题 | G55: 唐山短信使用问题 | H55: 0.0411 | I55: 0.0288 | J55: 0.0082 | K55: 0.0041 | L55: 8 | M55: 8 | N55: 0 | O55: 10 | P55: 7 | Q55: 7 | R55: 0 | S55: 2 | T55: 2 | U55: 0 | V55: 1 | W55: 0 | X55: 0 | Y55: 0 | Z55: 0 | AA55: 0 | AB55: 0 | AC55: 0 | AD55: 0 | AE55: 1 | AF55: 5 | AG55: 5 | AH55: 0.6 | AI55: 3 | AJ55: 5 | AK55: 1 | AL55: 4 | AM55: 4 | AN55: 1 | AO55: 5 | AP55: 5 | AQ55: 0.6 | AR55: 3 | AS55: 5 | AT55: 1 | AU55: 4 | AV55: 4 | AW55: 0 | AX55: 0 | AY55: 0 | AZ55: 0 | BA55: 0 | BB55: 0 | BC55: 0 | BD55: 0 | BE55: 0 | BF55: 0 | BG55: 0.2465 | BH55: 0.3333
A56: 河北 | B56: 沧州 | C56: - | D56: 网络质量 | E56: 移网网络体验 | F56: 短信使用问题 | G56: 沧州短信使用问题 | H56: 0.043 | I56: 0.0301 | J56: 0.0086 | K56: 0.0043 | L56: 9 | M56: 9 | N56: 0 | O56: 10 | P56: 7 | Q56: 7 | R56: 0 | S56: 2 | T56: 2 | U56: 0 | V56: 1 | W56: 2 | X56: 2 | Y56: 2 | Z56: 0 | AA56: 0 | AB56: 0 | AC56: 0 | AD56: 0 | AE56: 0.3333 | AF56: 1 | AG56: 3 | AH56: 0.3333 | AI56: 1 | AJ56: 3 | AK56: 0.3333 | AL56: 1 | AM56: 3 | AN56: 0.3333 | AO56: 1 | AP56: 3 | AQ56: 0.3333 | AR56: 1 | AS56: 3 | AT56: 0.3333 | AU56: 1 | AV56: 3 | AW56: 0 | AX56: 0 | AY56: 0 | AZ56: 0 | BA56: 0 | BB56: 0 | BC56: 0 | BD56: 0 | BE56: 0 | BF56: 0 | BG56: 2.3163 | BH56: 0
A57: 河北 | B57: 邯郸 | C57: - | D57: 网络质量 | E57: 移网网络体验 | F57: 短信使用问题 | G57: 邯郸短信使用问题 | H57: 0.0257 | I57: 0.022 | J57: 0.0037 | K57: 0 | L57: 7 | M57: 7 | N57: 0 | O57: 7 | P57: 6 | Q57: 6 | R57: 0 | S57: 1 | T57: 1 | U57: 0 | V57: 0 | W57: 0 | X57: 0 | Y57: 0 | Z57: 0 | AA57: 0 | AB57: 0 | AC57: 0 | AD57: 0 | AE57: 0 | AF57: 0 | AG57: 0 | AH57: 0 | AI57: 0 | AJ57: 0 | AK57: 0 | AL57: 0 | AM57: 0 | AN57: 0 | AO57: 0 | AP57: 0 | AQ57: 0 | AR57: 0 | AS57: 0 | AT57: 0 | AU57: 0 | AV57: 0 | AW57: 0 | AX57: 0 | AY57: 0 | AZ57: 0 | BA57: 0 | BB57: 0 | BC57: 0 | BD57: 0 | BE57: 0 | BF57: 0 | BG57: -0.2235 | BH57: -1
A58: 河北 | B58: 邢台 | C58: - | D58: 网络质量 | E58: 移网网络体验 | F58: 短信使用问题 | G58: 邢台短信使用问题 | H58: 0.0399 | I58: 0.0228 | J58: 0.0114 | K58: 0.0057 | L58: 7 | M58: 7 | N58: 0 | O58: 7 | P58: 4 | Q58: 4 | R58: 0 | S58: 2 | T58: 2 | U58: 0 | V58: 1 | W58: 1 | X58: 1 | Y58: 1 | Z58: 0 | AA58: 0 | AB58: 0 | AC58: 0 | AD58: 0 | AE58: 0 | AF58: 0 | AG58: 0 | AH58: 0 | AI58: 0 | AJ58: 0 | AK58: 0 | AL58: 0 | AM58: 0 | AN58: 0 | AO58: 0 | AP58: 0 | AQ58: 0 | AR58: 0 | AS58: 0 | AT58: 0 | AU58: 0 | AV58: 0 | AW58: 0 | AX58: 0 | AY58: 0 | AZ58: 0 | BA58: 0 | BB58: 0 | BC58: 0 | BD58: 0 | BE58: 0 | BF58: 0 | BG58: 1.3193 | BH58: -1
A59: 河北 | B59: 承德 | C59: - | D59: 网络质量 | E59: 移网网络体验 | F59: 短信使用问题 | G59: 承德短信使用问题 | H59: 0.0099 | I59: 0.0099 | J59: 0 | K59: 0 | L59: 0 | M59: 0 | N59: 0 | O59: 1 | P59: 1 | Q59: 1 | R59: 0 | S59: 0 | T59: 0 | U59: 0 | V59: 0 | W59: 0 | X59: 0 | Y59: 0 | Z59: 0 | AA59: 0 | AB59: 0 | AC59: 0 | AD59: 0 | AE59: 1 | AF59: 1 | AG59: 1 | AH59: 1 | AI59: 1 | AJ59: 1 | AK59: 1 | AL59: 1 | AM59: 1 | AN59: 1 | AO59: 1 | AP59: 1 | AQ59: 1 | AR59: 1 | AS59: 1 | AT59: 1 | AU59: 1 | AV59: 1 | AW59: 0 | AX59: 0 | AY59: 0 | AZ59: 0 | BA59: 0 | BB59: 0 | BC59: 0 | BD59: 0 | BE59: 0 | BF59: 0 | BG59: -0.5013 | BH59: 0
A60: 河北 | B60: 石家庄 | C60: - | D60: 网络质量 | E60: 移网网络体验 | F60: 短信使用问题 | G60: 石家庄短信使用问题 | H60: 0.1481 | I60: 0.0658 | J60: 0.0384 | K60: 0.0439 | L60: 53 | M60: 53 | N60: 0 | O60: 54 | P60: 24 | Q60: 24 | R60: 0 | S60: 14 | T60: 14 | U60: 0 | V60: 16 | W60: 6 | X60: 2 | Y60: 2 | Z60: 0 | AA60: 2 | AB60: 2 | AC60: 0 | AD60: 2 | AE60: 0.7 | AF60: 7 | AG60: 10 | AH60: 0.6667 | AI60: 8 | AJ60: 12 | AK60: 0.75 | AL60: 6 | AM60: 8 | AN60: 0.7 | AO60: 7 | AP60: 10 | AQ60: 0.6667 | AR60: 8 | AS60: 12 | AT60: 0.75 | AU60: 6 | AV60: 8 | AW60: 0 | AX60: 0 | AY60: 0 | AZ60: 0 | BA60: 0 | BB60: 0 | BC60: 0 | BD60: 0 | BE60: 0 | BF60: 0 | BG60: 0.988 | BH60: -0.2125
A61: 河北 | B61: 秦皇岛 | C61: - | D61: 网络质量 | E61: 移网网络体验 | F61: 短信使用问题 | G61: 秦皇岛短信使用问题 | H61: 0.0684 | I61: 0.0391 | J61: 0 | K61: 0.0293 | L61: 7 | M61: 7 | N61: 0 | O61: 7 | P61: 4 | Q61: 4 | R61: 0 | S61: 0 | T61: 0 | U61: 0 | V61: 3 | W61: 0 | X61: 0 | Y61: 0 | Z61: 0 | AA61: 0 | AB61: 0 | AC61: 0 | AD61: 0 | AE61: 1 | AF61: 2 | AG61: 2 | AH61: 0.6667 | AI61: 2 | AJ61: 3 | AK61: 1 | AL61: 2 | AM61: 2 | AN61: 1 | AO61: 2 | AP61: 2 | AQ61: 0.6667 | AR61: 2 | AS61: 3 | AT61: 1 | AU61: 2 | AV61: 2 | AW61: 0 | AX61: 0 | AY61: 0 | AZ61: 0 | BA61: 0 | BB61: 0 | BC61: 0 | BD61: 0 | BE61: 0 | BF61: 0 | BG61: 1.3315 | BH61: 0
A62: 河北 | B62: 廊坊 | C62: - | D62: 网络质量 | E62: 移网网络体验 | F62: 短信使用问题 | G62: 廊坊短信使用问题 | H62: 0.043 | I62: 0.0061 | J62: 0.0184 | K62: 0.0184 | L62: 8 | M62: 8 | N62: 0 | O62: 7 | P62: 1 | Q62: 1 | R62: 0 | S62: 3 | T62: 3 | U62: 0 | V62: 3 | W62: 1 | X62: 0 | Y62: 0 | Z62: 0 | AA62: 1 | AB62: 1 | AC62: 0 | AD62: 0 | AE62: 1 | AF62: 2 | AG62: 2 | AH62: 1 | AI62: 3 | AJ62: 3 | AK62: 1 | AL62: 2 | AM62: 2 | AN62: 1 | AO62: 2 | AP62: 2 | AQ62: 1 | AR62: 3 | AS62: 3 | AT62: 1 | AU62: 2 | AV62: 2 | AW62: 0 | AX62: 0 | AY62: 0 | AZ62: 0 | BA62: 0 | BB62: 0 | BC62: 0 | BD62: 0 | BE62: 0 | BF62: 0 | BG62: 0.7398 | BH62: 0
A63: 河北 | B63: 雄安新区 | C63: - | D63: 网络质量 | E63: 移网网络体验 | F63: 短信使用问题 | G63: 雄安新区短信使用问题 | H63: 0.0391 | I63: 0 | J63: 0 | K63: 0.0391 | L63: 1 | M63: 1 | N63: 0 | O63: 1 | P63: 0 | Q63: 0 | R63: 0 | S63: 0 | T63: 0 | U63: 0 | V63: 1 | W63: 0 | X63: 0 | Y63: 0 | Z63: 0 | AA63: 0 | AB63: 0 | AC63: 0 | AD63: 0 | AE63: 1 | AF63: 1 | AG63: 1 | AH63: 1 | AI63: 1 | AJ63: 1 | AK63: 1 | AL63: 1 | AM63: 1 | AN63: 1 | AO63: 1 | AP63: 1 | AQ63: 1 | AR63: 1 | AS63: 1 | AT63: 1 | AU63: 1 | AV63: 1 | AW63: 0 | AX63: 0 | AY63: 0 | AZ63: 0 | BA63: 0 | BB63: 0 | BC63: 0 | BD63: 0 | BE63: 0 | BF63: 0 | BG63: 0 | BH63: 0
A64: 河北 | B64: 衡水 | C64: - | D64: 网络质量 | E64: 移网网络体验 | F64: 短信使用问题 | G64: 衡水短信使用问题 | H64: 0.026 | I64: 0.0195 | J64: 0 | K64: 0.0065 | L64: 6 | M64: 6 | N64: 0 | O64: 4 | P64: 3 | Q64: 3 | R64: 0 | S64: 0 | T64: 0 | U64: 0 | V64: 1 | W64: 1 | X64: 0 | Y64: 0 | Z64: 0 | AA64: 0 | AB64: 0 | AC64: 0 | AD64: 1 | AE64: 0 | AF64: 0 | AG64: 0 | AH64: 0 | AI64: 0 | AJ64: 0 | AK64: 0 | AL64: 0 | AM64: 0 | AN64: 0 | AO64: 0 | AP64: 0 | AQ64: 0 | AR64: 0 | AS64: 0 | AT64: 0 | AU64: 0 | AV64: 0 | AW64: 0 | AX64: 0 | AY64: 0 | AZ64: 0 | BA64: 0 | BB64: 0 | BC64: 0 | BD64: 0 | BE64: 0 | BF64: 0 | BG64: 2.9954 | BH64: 0
A65: 河北 | B65: 张家口 | C65: - | D65: 网络质量 | E65: 移网网络体验 | F65: 短信使用问题 | G65: 张家口短信使用问题 | H65: 0.0415 | I65: 0.0415 | J65: 0 | K65: 0 | L65: 3 | M65: 3 | N65: 0 | O65: 4 | P65: 4 | Q65: 4 | R65: 0 | S65: 0 | T65: 0 | U65: 0 | V65: 0 | W65: 0 | X65: 0 | Y65: 0 | Z65: 0 | AA65: 0 | AB65: 0 | AC65: 0 | AD65: 0 | AE65: 1 | AF65: 2 | AG65: 2 | AH65: 0.5 | AI65: 1 | AJ65: 2 | AK65: 1 | AL65: 2 | AM65: 2 | AN65: 1 | AO65: 2 | AP65: 2 | AQ65: 0.5 | AR65: 1 | AS65: 2 | AT65: 1 | AU65: 2 | AV65: 2 | AW65: 0 | AX65: 0 | AY65: 0 | AZ65: 0 | BA65: 0 | BB65: 0 | BC65: 0 | BD65: 0 | BE65: 0 | BF65: 0 | BG65: 2.9701 | BH65: 0
A66: 河北 | B66: 邢台 | C66: - | D66: 网络质量 | E66: 移网网络体验 | F66: 语音通信问题 | G66: 邢台语音通信问题 | H66: 0.5524 | I66: 0.5296 | J66: 0 | K66: 0.0228 | L66: 111 | M66: 111 | N66: 0 | O66: 97 | P66: 93 | Q66: 93 | R66: 0 | S66: 0 | T66: 0 | U66: 0 | V66: 4 | W66: 9 | X66: 8 | Y66: 8 | Z66: 0 | AA66: 0 | AB66: 0 | AC66: 0 | AD66: 1 | AE66: 0.96 | AF66: 48 | AG66: 50 | AH66: 0.8824 | AI66: 45 | AJ66: 51 | AK66: 0.9796 | AL66: 48 | AM66: 49 | AN66: 0.96 | AO66: 48 | AP66: 50 | AQ66: 0.8824 | AR66: 45 | AS66: 51 | AT66: 0.9796 | AU66: 48 | AV66: 49 | AW66: 0 | AX66: 0 | AY66: 0 | AZ66: 0 | BA66: 0 | BB66: 0 | BC66: 0 | BD66: 0 | BE66: 0 | BF66: 0 | BG66: -0.0162 | BH66: 0.088
A67: 河北 | B67: 沧州 | C67: - | D67: 网络质量 | E67: 移网网络体验 | F67: 语音通信问题 | G67: 沧州语音通信问题 | H67: 1.351 | I67: 1.3165 | J67: 0.0215 | K67: 0.0129 | L67: 305 | M67: 305 | N67: 0 | O67: 314 | P67: 306 | Q67: 306 | R67: 0 | S67: 5 | T67: 5 | U67: 0 | V67: 3 | W67: 31 | X67: 31 | Y67: 31 | Z67: 0 | AA67: 0 | AB67: 0 | AC67: 0 | AD67: 0 | AE67: 0.8986 | AF67: 124 | AG67: 138 | AH67: 0.7905 | AI67: 117 | AJ67: 148 | AK67: 0.9695 | AL67: 127 | AM67: 131 | AN67: 0.8986 | AO67: 124 | AP67: 138 | AQ67: 0.7905 | AR67: 117 | AS67: 148 | AT67: 0.9695 | AU67: 127 | AV67: 131 | AW67: 0 | AX67: 0 | AY67: 0 | AZ67: 0 | BA67: 0 | BB67: 0 | BC67: 0 | BD67: 0 | BE67: 0 | BF67: 0 | BG67: 0.9165 | BH67: -0.0032
A68: 河北 | B68: 邯郸 | C68: - | D68: 网络质量 | E68: 移网网络体验 | F68: 语音通信问题 | G68: 邯郸语音通信问题 | H68: 0.6061 | I68: 0.5914 | J68: 0.0037 | K68: 0.011 | L68: 160 | M68: 160 | N68: 0 | O68: 165 | P68: 161 | Q68: 161 | R68: 0 | S68: 1 | T68: 1 | U68: 0 | V68: 3 | W68: 13 | X68: 13 | Y68: 13 | Z68: 0 | AA68: 0 | AB68: 0 | AC68: 0 | AD68: 0 | AE68: 0.9091 | AF68: 80 | AG68: 88 | AH68: 0.9213 | AI68: 82 | AJ68: 89 | AK68: 0.988 | AL68: 82 | AM68: 83 | AN68: 0.9091 | AO68: 80 | AP68: 88 | AQ68: 0.9213 | AR68: 82 | AS68: 89 | AT68: 0.988 | AU68: 82 | AV68: 83 | AW68: 0 | AX68: 0 | AY68: 0 | AZ68: 0 | BA68: 0 | BB68: 0 | BC68: 0 | BD68: 0 | BE68: 0 | BF68: 0 | BG68: 0.396 | BH68: -0.0606
A69: 河北 | B69: 衡水 | C69: - | D69: 网络质量 | E69: 移网网络体验 | F69: 语音通信问题 | G69: =B69&F69 -> 衡水语音通信问题 | H69: 0.4884 | I69: 0.4884 | J69: 0 | K69: 0 | L69: 77 | M69: 77 | N69: 0 | O69: 75 | P69: 75 | Q69: 75 | R69: 0 | S69: 0 | T69: 0 | U69: 0 | V69: 0 | W69: 7 | X69: 7 | Y69: 7 | Z69: 0 | AA69: 0 | AB69: 0 | AC69: 0 | AD69: 0 | AE69: 0.8261 | AF69: 19 | AG69: 22 | AH69: 0.8 | AI69: 20 | AJ69: 24 | AK69: 0.9091 | AL69: 20 | AM69: 21 | AN69: 0.8261 | AO69: 19 | AP69: 22 | AQ69: 0.8 | AR69: 20 | AS69: 24 | AT69: 0.9091 | AU69: 20 | AV69: 21 | AW69: 1 | AX69: 0 | AY69: 0 | AZ69: 0 | BA69: 0 | BB69: 0 | BC69: 0 | BD69: 0 | BE69: 0 | BF69: 0 | BG69: -0.0012 | BH69: -0.0988
A70: 河北 | B70: 张家口 | C70: - | D70: 网络质量 | E70: 移网网络体验 | F70: 语音通信问题 | G70: =B70&F70 -> 张家口语音通信问题 | H70: 0.8512 | I70: 0.8304 | J70: 0.0208 | K70: 0 | L70: 88 | M70: 88 | N70: 0 | O70: 82 | P70: 80 | Q70: 80 | R70: 0 | S70: 2 | T70: 2 | U70: 0 | V70: 0 | W70: 9 | X70: 9 | Y70: 9 | Z70: 0 | AA70: 0 | AB70: 0 | AC70: 0 | AD70: 0 | AE70: 0.8095 | AF70: 17 | AG70: 21 | AH70: 0.7917 | AI70: 19 | AJ70: 24 | AK70: 0.9 | AL70: 18 | AM70: 20 | AN70: 0.8095 | AO70: 17 | AP70: 21 | AQ70: 0.7917 | AR70: 19 | AS70: 24 | AT70: 0.9 | AU70: 18 | AV70: 20 | AW70: 0 | AX70: 0 | AY70: 0 | AZ70: 0 | BA70: 0 | BB70: 0 | BC70: 0 | BD70: 0 | BE70: 0 | BF70: 0 | BG70: 0.4534 | BH70: -0.1553
A71: 河北 | B71: 雄安新区 | C71: - | D71: 网络质量 | E71: 移网网络体验 | F71: 语音通信问题 | G71: =B71&F71 -> 雄安新区语音通信问题 | H71: 0.977 | I71: 0.9379 | J71: 0.0391 | K71: 0 | L71: 26 | M71: 26 | N71: 0 | O71: 25 | P71: 24 | Q71: 24 | R71: 0 | S71: 1 | T71: 1 | U71: 0 | V71: 0 | W71: 3 | X71: 3 | Y71: 3 | Z71: 0 | AA71: 0 | AB71: 0 | AC71: 0 | AD71: 0 | AE71: 0.875 | AF71: 14 | AG71: 14 | AH71: 0.8125 | AI71: 13 | AJ71: 14 | AK71: 0.8667 | AL71: 13 | AM71: 13 | AN71: 0.875 | AO71: 14 | AP71: 14 | AQ71: 0.8125 | AR71: 13 | AS71: 14 | AT71: 0.8667 | AU71: 13 | AV71: 13 | AW71: 2 | AX71: 0 | AY71: 0 | AZ71: 0 | BA71: 0 | BB71: 0 | BC71: 0 | BD71: 0 | BE71: 0 | BF71: 0 | BG71: 0.3707 | BH71: 0.2031
A72: 河北 | B72: 唐山 | C72: - | D72: 网络质量 | E72: 移网网络体验 | F72: 语音通信问题 | G72: =B72&F72 -> 唐山语音通信问题 | H72: 0.7074 | I72: 0.6786 | J72: 0.0165 | K72: 0.0123 | L72: 166 | M72: 166 | N72: 0 | O72: 172 | P72: 165 | Q72: 165 | R72: 0 | S72: 4 | T72: 4 | U72: 0 | V72: 3 | W72: 19 | X72: 18 | Y72: 18 | Z72: 0 | AA72: 1 | AB72: 1 | AC72: 0 | AD72: 0 | AE72: 0.9294 | AF72: 79 | AG72: 84 | AH72: 0.8511 | AI72: 80 | AJ72: 93 | AK72: 0.9481 | AL72: 73 | AM72: 76 | AN72: 0.9294 | AO72: 79 | AP72: 84 | AQ72: 0.8511 | AR72: 80 | AS72: 93 | AT72: 0.9481 | AU72: 73 | AV72: 76 | AW72: 1 | AX72: 0 | AY72: 0 | AZ72: 0 | BA72: 0 | BB72: 0 | BC72: 0 | BD72: 0 | BE72: 0 | BF72: 0 | BG72: 0.1911 | BH72: -0.019
A73: 河北 | B73: 承德 | C73: - | D73: 网络质量 | E73: 移网网络体验 | F73: 语音通信问题 | G73: =B73&F73 -> 承德语音通信问题 | H73: 1.0288 | I73: 1.0091 | J73: 0.0099 | K73: 0.0099 | L73: 107 | M73: 107 | N73: 0 | O73: 104 | P73: 102 | Q73: 102 | R73: 0 | S73: 1 | T73: 1 | U73: 0 | V73: 1 | W73: 8 | X73: 8 | Y73: 8 | Z73: 0 | AA73: 0 | AB73: 0 | AC73: 0 | AD73: 0 | AE73: 0.9024 | AF73: 37 | AG73: 41 | AH73: 0.8605 | AI73: 37 | AJ73: 43 | AK73: 0.9722 | AL73: 35 | AM73: 36 | AN73: 0.9024 | AO73: 37 | AP73: 41 | AQ73: 0.8605 | AR73: 37 | AS73: 43 | AT73: 0.9722 | AU73: 35 | AV73: 36 | AW73: 0 | AX73: 0 | AY73: 0 | AZ73: 0 | BA73: 0 | BB73: 0 | BC73: 0 | BD73: 0 | BE73: 0 | BF73: 0 | BG73: 0.5255 | BH73: 0.0468
A74: 河北 | B74: 石家庄 | C74: - | D74: 网络质量 | E74: 移网网络体验 | F74: 语音通信问题 | G74: =B74&F74 -> 石家庄语音通信问题 | H74: 2.1253 | I74: 2.0485 | J74: 0.0329 | K74: 0.0439 | L74: 669 | M74: 669 | N74: 0 | O74: 775 | P74: 747 | Q74: 747 | R74: 0 | S74: 12 | T74: 12 | U74: 0 | V74: 16 | W74: 45 | X74: 43 | Y74: 43 | Z74: 0 | AA74: 2 | AB74: 2 | AC74: 0 | AD74: 0 | AE74: 0.8868 | AF74: 329 | AG74: 370 | AH74: 0.8131 | AI74: 322 | AJ74: 395 | AK74: 0.9437 | AL74: 335 | AM74: 354 | AN74: 0.8868 | AO74: 329 | AP74: 370 | AQ74: 0.8131 | AR74: 322 | AS74: 395 | AT74: 0.9437 | AU74: 335 | AV74: 354 | AW74: 1 | AX74: 0 | AY74: 0 | AZ74: 0 | BA74: 0 | BB74: 0 | BC74: 0 | BD74: 0 | BE74: 0 | BF74: 0 | BG74: 1.0273 | BH74: 0.0346
A75: 河北 | B75: 秦皇岛 | C75: - | D75: 网络质量 | E75: 移网网络体验 | F75: 语音通信问题 | G75: =B75&F75 -> 秦皇岛语音通信问题 | H75: 0.7617 | I75: 0.7519 | J75: 0.0098 | K75: 0 | L75: 71 | M75: 71 | N75: 0 | O75: 78 | P75: 77 | Q75: 77 | R75: 0 | S75: 1 | T75: 1 | U75: 0 | V75: 0 | W75: 3 | X75: 3 | Y75: 3 | Z75: 0 | AA75: 0 | AB75: 0 | AC75: 0 | AD75: 0 | AE75: 1 | AF75: 35 | AG75: 35 | AH75: 0.9722 | AI75: 35 | AJ75: 36 | AK75: 1 | AL75: 33 | AM75: 33 | AN75: 1 | AO75: 35 | AP75: 35 | AQ75: 0.9722 | AR75: 35 | AS75: 36 | AT75: 1 | AU75: 33 | AV75: 33 | AW75: 0 | AX75: 0 | AY75: 0 | AZ75: 0 | BA75: 0 | BB75: 0 | BC75: 0 | BD75: 0 | BE75: 0 | BF75: 0 | BG75: 0.2777 | BH75: 0.2667
A76: 河北 | B76: 廊坊 | C76: - | D76: 网络质量 | E76: 移网网络体验 | F76: 语音通信问题 | G76: =B76&F76 -> 廊坊语音通信问题 | H76: 0.9528 | I76: 0.9343 | J76: 0.0123 | K76: 0.0061 | L76: 152 | M76: 152 | N76: 0 | O76: 155 | P76: 152 | Q76: 152 | R76: 0 | S76: 2 | T76: 2 | U76: 0 | V76: 1 | W76: 15 | X76: 15 | Y76: 15 | Z76: 0 | AA76: 0 | AB76: 0 | AC76: 0 | AD76: 0 | AE76: 0.9718 | AF76: 69 | AG76: 71 | AH76: 0.8108 | AI76: 60 | AJ76: 74 | AK76: 0.9855 | AL76: 68 | AM76: 69 | AN76: 0.9718 | AO76: 69 | AP76: 71 | AQ76: 0.8108 | AR76: 60 | AS76: 74 | AT76: 0.9855 | AU76: 68 | AV76: 69 | AW76: 0 | AX76: 0 | AY76: 0 | AZ76: 0 | BA76: 0 | BB76: 0 | BC76: 0 | BD76: 0 | BE76: 0 | BF76: 0 | BG76: 0.5724 | BH76: 0.1526
G77: =B77&F77 -> 

Sheet Sheet2
A1: 账期月 | B1: 账期日 | C1: 日期 | D1: 工单归属地市 | E1: 专业线 | F1: 大类问题 | G1: 小类问题 | I1: 总投诉量（办结量） | J1: 10010热线投诉量（办结量） | K1: 营业厅、在线等其他投诉渠道（办结量） | L1: 10015升诉量（办结量） | M1: 总满意率 | N1: 总满意参评量 | P1: 总参评量 | R1: 投诉满意率 | S1: 投诉满意量 | T1: 投诉满意参评量 | U1: 投诉解决率 | V1: 投诉解决量 | X1: 投诉解决参评量 | Z1: 投诉响应率 | AA1: 投诉响应量 | AC1: 投诉响应参评量 | AE1: 投诉未邀请评价量 | AF1: 故障满意率 | AG1: 故障满意量 | AH1: 故障满意参评量 | AI1: 故障解决率 | AJ1: 故障解决量 | AK1: 故障解决参评量 | AL1: 故障响应率 | AM1: 故障响应量 | AN1: 故障响应参评量
A2: 202304 | B2: 12 | C2: 2023-04-12 | D2: 石家庄 | E2: 网络质量 | F2: 移网网络体验 | G2: -- | H2: =D2&G2 -> 石家庄-- | I2: 1471 | J2: 1344 | K2: 49 | L2: 78 | M2: 0.9097 | N2: 655 | O2: =VLOOKUP(H2,Sheet_0!G:AG,26,0) -> 655 | P2: 719 | Q2: =VLOOKUP(H2,Sheet_0!G:AG,27,0) -> 719 | R2: 0.9097 | S2: 655 | T2: 719 | U2: 0.849 | V2: 652 | W2: =VLOOKUP(H2,Sheet_0!G:AJ,29,0) -> 652 | X2: 767 | Y2: =VLOOKUP(H2,Sheet_0!G:AJ,30,0) -> 767 | Z2: 0.9612 | AA2: 668 | AB2: =VLOOKUP(H2,Sheet_0!G:AM,32,0) -> 668 | AC2: 694 | AD2: =VLOOKUP(H2,Sheet_0!G:AM,33,0) -> 694 | AE2: 1 | AG2: 0 | AH2: 0 | AJ2: 0 | AK2: 0 | AM2: 0 | AN2: 0
A3: 202304 | B3: 12 | C3: 2023-04-12 | D3: 石家庄 | E3: 网络质量 | F3: 移网网络体验 | G3: 上网中断、不可用 | H3: =D3&G3 -> 石家庄上网中断、不可用 | I3: 265 | J3: 213 | K3: 8 | L3: 44 | M3: 0.9348 | N3: 129 | O3: =VLOOKUP(H3,Sheet_0!G:AG,26,0) -> 129 | P3: 138 | Q3: =VLOOKUP(H3,Sheet_0!G:AG,27,0) -> 138 | R3: 0.9348 | S3: 129 | T3: 138 | U3: 0.9007 | V3: 136 | W3: =VLOOKUP(H3,Sheet_0!G:AJ,29,0) -> 136 | X3: 151 | Y3: =VLOOKUP(H3,Sheet_0!G:AJ,30,0) -> 151 | Z3: 0.9926 | AA3: 134 | AB3: =VLOOKUP(H3,Sheet_0!G:AM,32,0) -> 134 | AC3: 135 | AD3: =VLOOKUP(H3,Sheet_0!G:AM,33,0) -> 135 | AE3: 0 | AG3: 0 | AH3: 0 | AJ3: 0 | AK3: 0 | AM3: 0 | AN3: 0
A4: 202304 | B4: 12 | C4: 2023-04-12 | D4: 石家庄 | E4: 网络质量 | F4: 移网网络体验 | G4: 上网网络卡顿 | H4: 石家庄上网网络卡顿 | I4: 370 | J4: 356 | K4: 12 | L4: 2 | M4: 0.9444 | N4: 187 | O4: =VLOOKUP(H4,Sheet_0!G:AG,26,0) -> 187 | P4: 198 | Q4: =VLOOKUP(H4,Sheet_0!G:AG,27,0) -> 198 | R4: 0.9444 | S4: 187 | T4: 198 | U4: 0.8883 | V4: 183 | W4: =VLOOKUP(H4,Sheet_0!G:AJ,29,0) -> 183 | X4: 206 | Y4: =VLOOKUP(H4,Sheet_0!G:AJ,30,0) -> 206 | Z4: 0.9794 | AA4: 190 | AB4: =VLOOKUP(H4,Sheet_0!G:AM,32,0) -> 190 | AC4: 194 | AD4: =VLOOKUP(H4,Sheet_0!G:AM,33,0) -> 194 | AE4: 0 | AG4: 0 | AH4: 0 | AJ4: 0 | AK4: 0 | AM4: 0 | AN4: 0
A5: 202304 | B5: 12 | C5: 2023-04-12 | D5: 石家庄 | E5: 网络质量 | F5: 移网网络体验 | G5: 漫游争议 | H5: 石家庄漫游争议 | I5: 7 | J5: 4 | K5: 3 | L5: 0 | M5: 1 | N5: 3 | O5: =VLOOKUP(H5,Sheet_0!G:AG,26,0) -> 3 | P5: 3 | Q5: =VLOOKUP(H5,Sheet_0!G:AG,27,0) -> 3 | R5: 1 | S5: 3 | T5: 3 | U5: 1 | V5: 3 | W5: =VLOOKUP(H5,Sheet_0!G:AJ,29,0) -> 3 | X5: 3 | Y5: =VLOOKUP(H5,Sheet_0!G:AJ,30,0) -> 3 | Z5: 1 | AA5: 3 | AB5: =VLOOKUP(H5,Sheet_0!G:AM,32,0) -> 3 | AC5: 3 | AD5: =VLOOKUP(H5,Sheet_0!G:AM,33,0) -> 3 | AE5: 0 | AG5: 0 | AH5: 0 | AJ5: 0 | AK5: 0 | AM5: 0 | AN5: 0
A6: 202304 | B6: 12 | C6: 2023-04-12 | D6: 石家庄 | E6: 网络质量 | F6: 移网网络体验 | G6: 短信使用问题 | H6: 石家庄短信使用问题 | I6: 54 | J6: 24 | K6: 14 | L6: 16 | M6: 0.7 | N6: 7 | O6: =VLOOKUP(H6,Sheet_0!G:AG,26,0) -> 7 | P6: 10 | Q6: =VLOOKUP(H6,Sheet_0!G:AG,27,0) -> 10 | R6: 0.7 | S6: 7 | T6: 10 | U6: 0.6667 | V6: 8 | W6: =VLOOKUP(H6,Sheet_0!G:AJ,29,0) -> 8 | X6: 12 | Y6: =VLOOKUP(H6,Sheet_0!G:AJ,30,0) -> 12 | Z6: 0.75 | AA6: 6 | AB6: =VLOOKUP(H6,Sheet_0!G:AM,32,0) -> 6 | AC6: 8 | AD6: =VLOOKUP(H6,Sheet_0!G:AM,33,0) -> 8 | AE6: 0 | AG6: 0 | AH6: 0 | AJ6: 0 | AK6: 0 | AM6: 0 | AN6: 0
A7: 202304 | B7: 12 | C7: 2023-04-12 | D7: 石家庄 | E7: 网络质量 | F7: 移网网络体验 | G7: 语音通信问题 | H7: 石家庄语音通信问题 | I7: 775 | J7: 747 | K7: 12 | L7: 16 | M7: 0.8868 | N7: 329 | O7: =VLOOKUP(H7,Sheet_0!G:AG,26,0) -> 329 | P7: 370 | Q7: =VLOOKUP(H7,Sheet_0!G:AG,27,0) -> 370 | R7: 0.8868 | S7: 329 | T7: 370 | U7: 0.8131 | V7: 322 | W7: =VLOOKUP(H7,Sheet_0!G:AJ,29,0) -> 322 | X7: 395 | Y7: =VLOOKUP(H7,Sheet_0!G:AJ,30,0) -> 395 | Z7: 0.9437 | AA7: 335 | AB7: =VLOOKUP(H7,Sheet_0!G:AM,32,0) -> 335 | AC7: 354 | AD7: =VLOOKUP(H7,Sheet_0!G:AM,33,0) -> 354 | AE7: 1 | AG7: 0 | AH7: 0 | AJ7: 0 | AK7: 0 | AM7: 0 | AN7: 0
A8: 202304 | B8: 12 | C8: 2023-04-12 | D8: 唐山 | E8: 网络质量 | F8: 移网网络体验 | G8: -- | H8: 唐山-- | I8: 559 | J8: 524 | K8: 11 | L8: 24 | M8: 0.9151 | N8: 248 | O8: =VLOOKUP(H8,Sheet_0!G:AG,26,0) -> 248 | P8: 270 | Q8: =VLOOKUP(H8,Sheet_0!G:AG,27,0) -> 270 | R8: 0.9151 | S8: 248 | T8: 270 | U8: 0.8443 | V8: 244 | W8: =VLOOKUP(H8,Sheet_0!G:AJ,29,0) -> 244 | X8: 288 | Y8: =VLOOKUP(H8,Sheet_0!G:AJ,30,0) -> 288 | Z8: 0.9715 | AA8: 239 | AB8: =VLOOKUP(H8,Sheet_0!G:AM,32,0) -> 239 | AC8: 245 | AD8: =VLOOKUP(H8,Sheet_0!G:AM,33,0) -> 245 | AE8: 1 | AG8: 0 | AH8: 0 | AJ8: 0 | AK8: 0 | AM8: 0 | AN8: 0
A9: 202304 | B9: 12 | C9: 2023-04-12 | D9: 唐山 | E9: 网络质量 | F9: 移网网络体验 | G9: 上网中断、不可用 | H9: 唐山上网中断、不可用 | I9: 153 | J9: 132 | K9: 2 | L9: 19 | M9: 0.9054 | N9: 67 | O9: =VLOOKUP(H9,Sheet_0!G:AG,26,0) -> 67 | P9: 74 | Q9: =VLOOKUP(H9,Sheet_0!G:AG,27,0) -> 74 | R9: 0.9054 | S9: 67 | T9: 74 | U9: 0.8354 | V9: 66 | W9: =VLOOKUP(H9,Sheet_0!G:AJ,29,0) -> 66 | X9: 79 | Y9: =VLOOKUP(H9,Sheet_0!G:AJ,30,0) -> 79 | Z9: 0.9846 | AA9: 64 | AB9: =VLOOKUP(H9,Sheet_0!G:AM,32,0) -> 64 | AC9: 65 | AD9: =VLOOKUP(H9,Sheet_0!G:AM,33,0) -> 65 | AE9: 0 | AG9: 0 | AH9: 0 | AJ9: 0 | AK9: 0 | AM9: 0 | AN9: 0
A10: 202304 | B10: 12 | C10: 2023-04-12 | D10: 唐山 | E10: 网络质量 | F10: 移网网络体验 | G10: 上网网络卡顿 | H10: 唐山上网网络卡顿 | I10: 222 | J10: 218 | K10: 3 | L10: 1 | M10: 0.9057 | N10: 96 | O10: =VLOOKUP(H10,Sheet_0!G:AG,26,0) -> 96 | P10: 106 | Q10: =VLOOKUP(H10,Sheet_0!G:AG,27,0) -> 106 | R10: 0.9057 | S10: 96 | T10: 106 | U10: 0.8545 | V10: 94 | W10: =VLOOKUP(H10,Sheet_0!G:AJ,29,0) -> 94 | X10: 110 | Y10: =VLOOKUP(H10,Sheet_0!G:AJ,30,0) -> 110 | Z10: 0.9798 | AA10: 97 | AB10: =VLOOKUP(H10,Sheet_0!G:AM,32,0) -> 97 | AC10: 99 | AD10: =VLOOKUP(H10,Sheet_0!G:AM,33,0) -> 99 | AE10: 0 | AG10: 0 | AH10: 0 | AJ10: 0 | AK10: 0 | AM10: 0 | AN10: 0
A11: 202304 | B11: 12 | C11: 2023-04-12 | D11: 唐山 | E11: 网络质量 | F11: 移网网络体验 | G11: 漫游争议 | H11: 唐山漫游争议 | I11: 2 | J11: 2 | K11: 0 | L11: 0 | M11: 1 | N11: 1 | O11: =VLOOKUP(H11,Sheet_0!G:AG,26,0) -> 1 | P11: 1 | Q11: =VLOOKUP(H11,Sheet_0!G:AG,27,0) -> 1 | R11: 1 | S11: 1 | T11: 1 | U11: 1 | V11: 1 | W11: =VLOOKUP(H11,Sheet_0!G:AJ,29,0) -> 1 | X11: 1 | Y11: =VLOOKUP(H11,Sheet_0!G:AJ,30,0) -> 1 | Z11: 1 | AA11: 1 | AB11: =VLOOKUP(H11,Sheet_0!G:AM,32,0) -> 1 | AC11: 1 | AD11: =VLOOKUP(H11,Sheet_0!G:AM,33,0) -> 1 | AE11: 0 | AG11: 0 | AH11: 0 | AJ11: 0 | AK11: 0 | AM11: 0 | AN11: 0
A12: 202304 | B12: 12 | C12: 2023-04-12 | D12: 唐山 | E12: 网络质量 | F12: 移网网络体验 | G12: 短信使用问题 | H12: 唐山短信使用问题 | I12: 10 | J12: 7 | K12: 2 | L12: 1 | M12: 1 | N12: 5 | O12: =VLOOKUP(H12,Sheet_0!G:AG,26,0) -> 5 | P12: 5 | Q12: =VLOOKUP(H12,Sheet_0!G:AG,27,0) -> 5 | R12: 1 | S12: 5 | T12: 5 | U12: 0.6 | V12: 3 | W12: =VLOOKUP(H12,Sheet_0!G:AJ,29,0) -> 3 | X12: 5 | Y12: =VLOOKUP(H12,Sheet_0!G:AJ,30,0) -> 5 | Z12: 1 | AA12: 4 | AB12: =VLOOKUP(H12,Sheet_0!G:AM,32,0) -> 4 | AC12: 4 | AD12: =VLOOKUP(H12,Sheet_0!G:AM,33,0) -> 4 | AE12: 0 | AG12: 0 | AH12: 0 | AJ12: 0 | AK12: 0 | AM12: 0 | AN12: 0
A13: 202304 | B13: 12 | C13: 2023-04-12 | D13: 唐山 | E13: 网络质量 | F13: 移网网络体验 | G13: 语音通信问题 | H13: 唐山语音通信问题 | I13: 172 | J13: 165 | K13: 4 | L13: 3 | M13: 0.9294 | N13: 79 | O13: =VLOOKUP(H13,Sheet_0!G:AG,26,0) -> 79 | P13: 84 | Q13: =VLOOKUP(H13,Sheet_0!G:AG,27,0) -> 84 | R13: 0.9294 | S13: 79 | T13: 84 | U13: 0.8511 | V13: 80 | W13: =VLOOKUP(H13,Sheet_0!G:AJ,29,0) -> 80 | X13: 93 | Y13: =VLOOKUP(H13,Sheet_0!G:AJ,30,0) -> 93 | Z13: 0.9481 | AA13: 73 | AB13: =VLOOKUP(H13,Sheet_0!G:AM,32,0) -> 73 | AC13: 76 | AD13: =VLOOKUP(H13,Sheet_0!G:AM,33,0) -> 76 | AE13: 1 | AG13: 0 | AH13: 0 | AJ13: 0 | AK13: 0 | AM13: 0 | AN13: 0
A14: 202304 | B14: 12 | C14: 2023-04-12 | D14: 秦皇岛 | E14: 网络质量 | F14: 移网网络体验 | G14: -- | H14: 秦皇岛-- | I14: 215 | J14: 203 | K14: 2 | L14: 10 | M14: 0.9494 | N14: 75 | O14: =VLOOKUP(H14,Sheet_0!G:AG,26,0) -> 75 | P14: 79 | Q14: =VLOOKUP(H14,Sheet_0!G:AG,27,0) -> 79 | R14: 0.9494 | S14: 75 | T14: 79 | U14: 0.8916 | V14: 74 | W14: =VLOOKUP(H14,Sheet_0!G:AJ,29,0) -> 74 | X14: 83 | Y14: =VLOOKUP(H14,Sheet_0!G:AJ,30,0) -> 83 | Z14: 0.973 | AA14: 72 | AB14: =VLOOKUP(H14,Sheet_0!G:AM,32,0) -> 72 | AC14: 74 | AD14: =VLOOKUP(H14,Sheet_0!G:AM,33,0) -> 74 | AE14: 0 | AG14: 0 | AH14: 0 | AJ14: 0 | AK14: 0 | AM14: 0 | AN14: 0
A15: 202304 | B15: 12 | C15: 2023-04-12 | D15: 秦皇岛 | E15: 网络质量 | F15: 移网网络体验 | G15: 上网中断、不可用 | H15: 秦皇岛上网中断、不可用 | I15: 62 | J15: 55 | K15: 0 | L15: 7 | M15: 0.8261 | N15: 19 | O15: =VLOOKUP(H15,Sheet_0!G:AG,26,0) -> 19 | P15: 23 | Q15: =VLOOKUP(H15,Sheet_0!G:AG,27,0) -> 23 | R15: 0.8261 | S15: 19 | T15: 23 | U15: 0.7826 | V15: 18 | W15: =VLOOKUP(H15,Sheet_0!G:AJ,29,0) -> 18 | X15: 23 | Y15: =VLOOKUP(H15,Sheet_0!G:AJ,30,0) -> 23 | Z15: 0.9091 | AA15: 20 | AB15: =VLOOKUP(H15,Sheet_0!G:AM,32,0) -> 20 | AC15: 22 | AD15: =VLOOKUP(H15,Sheet_0!G:AM,33,0) -> 22 | AE15: 0 | AG15: 0 | AH15: 0 | AJ15: 0 | AK15: 0 | AM15: 0 | AN15: 0
A16: 202304 | B16: 12 | C16: 2023-04-12 | D16: 秦皇岛 | E16: 网络质量 | F16: 移网网络体验 | G16: 上网网络卡顿 | H16: 秦皇岛上网网络卡顿 | I16: 67 | J16: 66 | K16: 1 | L16: 0 | M16: 1 | N16: 18 | O16: =VLOOKUP(H16,Sheet_0!G:AG,26,0) -> 18 | P16: 18 | Q16: =VLOOKUP(H16,Sheet_0!G:AG,27,0) -> 18 | R16: 1 | S16: 18 | T16: 18 | U16: 0.9 | V16: 18 | W16: =VLOOKUP(H16,Sheet_0!G:AJ,29,0) -> 18 | X16: 20 | Y16: =VLOOKUP(H16,Sheet_0!G:AJ,30,0) -> 20 | Z16: 1 | AA16: 16 | AB16: =VLOOKUP(H16,Sheet_0!G:AM,32,0) -> 16 | AC16: 16 | AD16: =VLOOKUP(H16,Sheet_0!G:AM,33,0) -> 16 | AE16: 0 | AG16: 0 | AH16: 0 | AJ16: 0 | AK16: 0 | AM16: 0 | AN16: 0
A17: 202304 | B17: 12 | C17: 2023-04-12 | D17: 秦皇岛 | E17: 网络质量 | F17: 移网网络体验 | G17: 漫游争议 | H17: 秦皇岛漫游争议 | I17: 1 | J17: 1 | K17: 0 | L17: 0 | M17: 1 | N17: 1 | O17: =VLOOKUP(H17,Sheet_0!G:AG,26,0) -> 1 | P17: 1 | Q17: =VLOOKUP(H17,Sheet_0!G:AG,27,0) -> 1 | R17: 1 | S17: 1 | T17: 1 | U17: 1 | V17: 1 | W17: =VLOOKUP(H17,Sheet_0!G:AJ,29,0) -> 1 | X17: 1 | Y17: =VLOOKUP(H17,Sheet_0!G:AJ,30,0) -> 1 | Z17: 1 | AA17: 1 | AB17: =VLOOKUP(H17,Sheet_0!G:AM,32,0) -> 1 | AC17: 1 | AD17: =VLOOKUP(H17,Sheet_0!G:AM,33,0) -> 1 | AE17: 0 | AG17: 0 | AH17: 0 | AJ17: 0 | AK17: 0 | AM17: 0 | AN17: 0
A18: 202304 | B18: 12 | C18: 2023-04-12 | D18: 秦皇岛 | E18: 网络质量 | F18: 移网网络体验 | G18: 短信使用问题 | H18: 秦皇岛短信使用问题 | I18: 7 | J18: 4 | K18: 0 | L18: 3 | M18: 1 | N18: 2 | O18: =VLOOKUP(H18,Sheet_0!G:AG,26,0) -> 2 | P18: 2 | Q18: =VLOOKUP(H18,Sheet_0!G:AG,27,0) -> 2 | R18: 1 | S18: 2 | T18: 2 | U18: 0.6667 | V18: 2 | W18: =VLOOKUP(H18,Sheet_0!G:AJ,29,0) -> 2 | X18: 3 | Y18: =VLOOKUP(H18,Sheet_0!G:AJ,30,0) -> 3 | Z18: 1 | AA18: 2 | AB18: =VLOOKUP(H18,Sheet_0!G:AM,32,0) -> 2 | AC18: 2 | AD18: =VLOOKUP(H18,Sheet_0!G:AM,33,0) -> 2 | AE18: 0 | AG18: 0 | AH18: 0 | AJ18: 0 | AK18: 0 | AM18: 0 | AN18: 0
A19: 202304 | B19: 12 | C19: 2023-04-12 | D19: 秦皇岛 | E19: 网络质量 | F19: 移网网络体验 | G19: 语音通信问题 | H19: 秦皇岛语音通信问题 | I19: 78 | J19: 77 | K19: 1 | L19: 0 | M19: 1 | N19: 35 | O19: =VLOOKUP(H19,Sheet_0!G:AG,26,0) -> 35 | P19: 35 | Q19: =VLOOKUP(H19,Sheet_0!G:AG,27,0) -> 35 | R19: 1 | S19: 35 | T19: 35 | U19: 0.9722 | V19: 35 | W19: =VLOOKUP(H19,Sheet_0!G:AJ,29,0) -> 35 | X19: 36 | Y19: =VLOOKUP(H19,Sheet_0!G:AJ,30,0) -> 36 | Z19: 1 | AA19: 33 | AB19: =VLOOKUP(H19,Sheet_0!G:AM,32,0) -> 33 | AC19: 33 | AD19: =VLOOKUP(H19,Sheet_0!G:AM,33,0) -> 33 | AE19: 0 | AG19: 0 | AH19: 0 | AJ19: 0 | AK19: 0 | AM19: 0 | AN19: 0
A20: 202304 | B20: 12 | C20: 2023-04-12 | D20: 邯郸 | E20: 网络质量 | F20: 移网网络体验 | G20: -- | H20: 邯郸-- | I20: 404 | J20: 370 | K20: 6 | L20: 28 | M20: 0.9122 | N20: 187 | O20: =VLOOKUP(H20,Sheet_0!G:AG,26,0) -> 187 | P20: 205 | Q20: =VLOOKUP(H20,Sheet_0!G:AG,27,0) -> 205 | R20: 0.9122 | S20: 187 | T20: 205 | U20: 0.91 | V20: 192 | W20: =VLOOKUP(H20,Sheet_0!G:AJ,29,0) -> 192 | X20: 211 | Y20: =VLOOKUP(H20,Sheet_0!G:AJ,30,0) -> 211 | Z20: 0.9741 | AA20: 188 | AB20: =VLOOKUP(H20,Sheet_0!G:AM,32,0) -> 188 | AC20: 193 | AD20: =VLOOKUP(H20,Sheet_0!G:AM,33,0) -> 193 | AE20: 0 | AG20: 0 | AH20: 0 | AJ20: 0 | AK20: 0 | AM20: 0 | AN20: 0
A21: 202304 | B21: 12 | C21: 2023-04-12 | D21: 邯郸 | E21: 网络质量 | F21: 移网网络体验 | G21: 上网中断、不可用 | H21: 邯郸上网中断、不可用 | I21: 119 | J21: 94 | K21: 1 | L21: 24 | M21: 0.9344 | N21: 57 | O21: =VLOOKUP(H21,Sheet_0!G:AG,26,0) -> 57 | P21: 61 | Q21: =VLOOKUP(H21,Sheet_0!G:AG,27,0) -> 61 | R21: 0.9344 | S21: 57 | T21: 61 | U21: 0.9194 | V21: 57 | W21: =VLOOKUP(H21,Sheet_0!G:AJ,29,0) -> 57 | X21: 62 | Y21: =VLOOKUP(H21,Sheet_0!G:AJ,30,0) -> 62 | Z21: 0.9828 | AA21: 57 | AB21: =VLOOKUP(H21,Sheet_0!G:AM,32,0) -> 57 | AC21: 58 | AD21: =VLOOKUP(H21,Sheet_0!G:AM,33,0) -> 58 | AE21: 0 | AG21: 0 | AH21: 0 | AJ21: 0 | AK21: 0 | AM21: 0 | AN21: 0
A22: 202304 | B22: 12 | C22: 2023-04-12 | D22: 邯郸 | E22: 网络质量 | F22: 移网网络体验 | G22: 上网网络卡顿 | H22: 邯郸上网网络卡顿 | I22: 111 | J22: 107 | K22: 3 | L22: 1 | M22: 0.8929 | N22: 50 | O22: =VLOOKUP(H22,Sheet_0!G:AG,26,0) -> 50 | P22: 56 | Q22: =VLOOKUP(H22,Sheet_0!G:AG,27,0) -> 56 | R22: 0.8929 | S22: 50 | T22: 56 | U22: 0.8833 | V22: 53 | W22: =VLOOKUP(H22,Sheet_0!G:AJ,29,0) -> 53 | X22: 60 | Y22: =VLOOKUP(H22,Sheet_0!G:AJ,30,0) -> 60 | Z22: 0.9423 | AA22: 49 | AB22: =VLOOKUP(H22,Sheet_0!G:AM,32,0) -> 49 | AC22: 52 | AD22: =VLOOKUP(H22,Sheet_0!G:AM,33,0) -> 52 | AE22: 0 | AG22: 0 | AH22: 0 | AJ22: 0 | AK22: 0 | AM22: 0 | AN22: 0
A23: 202304 | B23: 12 | C23: 2023-04-12 | D23: 邯郸 | E23: 网络质量 | F23: 移网网络体验 | G23: 漫游争议 | H23: 邯郸漫游争议 | I23: 2 | J23: 2 | K23: 0 | L23: 0 | N23: 0 | O23: =VLOOKUP(H23,Sheet_0!G:AG,26,0) -> 0 | P23: 0 | Q23: =VLOOKUP(H23,Sheet_0!G:AG,27,0) -> 0 | S23: 0 | T23: 0 | V23: 0 | W23: =VLOOKUP(H23,Sheet_0!G:AJ,29,0) -> 0 | X23: 0 | Y23: =VLOOKUP(H23,Sheet_0!G:AJ,30,0) -> 0 | AA23: 0 | AB23: =VLOOKUP(H23,Sheet_0!G:AM,32,0) -> 0 | AC23: 0 | AD23: =VLOOKUP(H23,Sheet_0!G:AM,33,0) -> 0 | AE23: 0 | AG23: 0 | AH23: 0 | AJ23: 0 | AK23: 0 | AM23: 0 | AN23: 0
A24: 202304 | B24: 12 | C24: 2023-04-12 | D24: 邯郸 | E24: 网络质量 | F24: 移网网络体验 | G24: 短信使用问题 | H24: 邯郸短信使用问题 | I24: 7 | J24: 6 | K24: 1 | L24: 0 | N24: 0 | O24: =VLOOKUP(H24,Sheet_0!G:AG,26,0) -> 0 | P24: 0 | Q24: =VLOOKUP(H24,Sheet_0!G:AG,27,0) -> 0 | S24: 0 | T24: 0 | V24: 0 | W24: =VLOOKUP(H24,Sheet_0!G:AJ,29,0) -> 0 | X24: 0 | Y24: =VLOOKUP(H24,Sheet_0!G:AJ,30,0) -> 0 | AA24: 0 | AB24: =VLOOKUP(H24,Sheet_0!G:AM,32,0) -> 0 | AC24: 0 | AD24: =VLOOKUP(H24,Sheet_0!G:AM,33,0) -> 0 | AE24: 0 | AG24: 0 | AH24: 0 | AJ24: 0 | AK24: 0 | AM24: 0 | AN24: 0
A25: 202304 | B25: 12 | C25: 2023-04-12 | D25: 邯郸 | E25: 网络质量 | F25: 移网网络体验 | G25: 语音通信问题 | H25: 邯郸语音通信问题 | I25: 165 | J25: 161 | K25: 1 | L25: 3 | M25: 0.9091 | N25: 80 | O25: =VLOOKUP(H25,Sheet_0!G:AG,26,0) -> 80 | P25: 88 | Q25: =VLOOKUP(H25,Sheet_0!G:AG,27,0) -> 88 | R25: 0.9091 | S25: 80 | T25: 88 | U25: 0.9213 | V25: 82 | W25: =VLOOKUP(H25,Sheet_0!G:AJ,29,0) -> 82 | X25: 89 | Y25: =VLOOKUP(H25,Sheet_0!G:AJ,30,0) -> 89 | Z25: 0.988 | AA25: 82 | AB25: =VLOOKUP(H25,Sheet_0!G:AM,32,0) -> 82 | AC25: 83 | AD25: =VLOOKUP(H25,Sheet_0!G:AM,33,0) -> 83 | AE25: 0 | AG25: 0 | AH25: 0 | AJ25: 0 | AK25: 0 | AM25: 0 | AN25: 0
A26: 202304 | B26: 12 | C26: 2023-04-12 | D26: 邢台 | E26: 网络质量 | F26: 移网网络体验 | G26: -- | H26: 邢台-- | I26: 259 | J26: 225 | K26: 6 | L26: 28 | M26: 0.9573 | N26: 112 | O26: =VLOOKUP(H26,Sheet_0!G:AG,26,0) -> 112 | P26: 117 | Q26: =VLOOKUP(H26,Sheet_0!G:AG,27,0) -> 117 | R26: 0.9573 | S26: 112 | T26: 117 | U26: 0.8846 | V26: 115 | W26: =VLOOKUP(H26,Sheet_0!G:AJ,29,0) -> 115 | X26: 130 | Y26: =VLOOKUP(H26,Sheet_0!G:AJ,30,0) -> 130 | Z26: 0.9817 | AA26: 107 | AB26: =VLOOKUP(H26,Sheet_0!G:AM,32,0) -> 107 | AC26: 109 | AD26: =VLOOKUP(H26,Sheet_0!G:AM,33,0) -> 109 | AE26: 0 | AG26: 0 | AH26: 0 | AJ26: 0 | AK26: 0 | AM26: 0 | AN26: 0
A27: 202304 | B27: 12 | C27: 2023-04-12 | D27: 邢台 | E27: 网络质量 | F27: 移网网络体验 | G27: 上网中断、不可用 | H27: 邢台上网中断、不可用 | I27: 79 | J27: 57 | K27: 1 | L27: 21 | M27: 0.9231 | N27: 36 | O27: =VLOOKUP(H27,Sheet_0!G:AG,26,0) -> 36 | P27: 39 | Q27: =VLOOKUP(H27,Sheet_0!G:AG,27,0) -> 39 | R27: 0.9231 | S27: 36 | T27: 39 | U27: 0.7857 | V27: 33 | W27: =VLOOKUP(H27,Sheet_0!G:AJ,29,0) -> 33 | X27: 42 | Y27: =VLOOKUP(H27,Sheet_0!G:AJ,30,0) -> 42 | Z27: 0.9714 | AA27: 34 | AB27: =VLOOKUP(H27,Sheet_0!G:AM,32,0) -> 34 | AC27: 35 | AD27: =VLOOKUP(H27,Sheet_0!G:AM,33,0) -> 35 | AE27: 0 | AG27: 0 | AH27: 0 | AJ27: 0 | AK27: 0 | AM27: 0 | AN27: 0
A28: 202304 | B28: 12 | C28: 2023-04-12 | D28: 邢台 | E28: 网络质量 | F28: 移网网络体验 | G28: 上网网络卡顿 | H28: 邢台上网网络卡顿 | I28: 76 | J28: 71 | K28: 3 | L28: 2 | M28: 1 | N28: 28 | O28: =VLOOKUP(H28,Sheet_0!G:AG,26,0) -> 28 | P28: 28 | Q28: =VLOOKUP(H28,Sheet_0!G:AG,27,0) -> 28 | R28: 1 | S28: 28 | T28: 28 | U28: 1 | V28: 37 | W28: =VLOOKUP(H28,Sheet_0!G:AJ,29,0) -> 37 | X28: 37 | Y28: =VLOOKUP(H28,Sheet_0!G:AJ,30,0) -> 37 | Z28: 1 | AA28: 25 | AB28: =VLOOKUP(H28,Sheet_0!G:AM,32,0) -> 25 | AC28: 25 | AD28: =VLOOKUP(H28,Sheet_0!G:AM,33,0) -> 25 | AE28: 0 | AG28: 0 | AH28: 0 | AJ28: 0 | AK28: 0 | AM28: 0 | AN28: 0
A29: 202304 | B29: 12 | C29: 2023-04-12 | D29: 邢台 | E29: 网络质量 | F29: 移网网络体验 | G29: 短信使用问题 | H29: 邢台短信使用问题 | I29: 7 | J29: 4 | K29: 2 | L29: 1 | N29: 0 | O29: =VLOOKUP(H29,Sheet_0!G:AG,26,0) -> 0 | P29: 0 | Q29: =VLOOKUP(H29,Sheet_0!G:AG,27,0) -> 0 | S29: 0 | T29: 0 | V29: 0 | W29: =VLOOKUP(H29,Sheet_0!G:AJ,29,0) -> 0 | X29: 0 | Y29: =VLOOKUP(H29,Sheet_0!G:AJ,30,0) -> 0 | AA29: 0 | AB29: =VLOOKUP(H29,Sheet_0!G:AM,32,0) -> 0 | AC29: 0 | AD29: =VLOOKUP(H29,Sheet_0!G:AM,33,0) -> 0 | AE29: 0 | AG29: 0 | AH29: 0 | AJ29: 0 | AK29: 0 | AM29: 0 | AN29: 0
A30: 202304 | B30: 12 | C30: 2023-04-12 | D30: 邢台 | E30: 网络质量 | F30: 移网网络体验 | G30: 语音通信问题 | H30: 邢台语音通信问题 | I30: 97 | J30: 93 | K30: 0 | L30: 4 | M30: 0.96 | N30: 48 | O30: =VLOOKUP(H30,Sheet_0!G:AG,26,0) -> 48 | P30: 50 | Q30: =VLOOKUP(H30,Sheet_0!G:AG,27,0) -> 50 | R30: 0.96 | S30: 48 | T30: 50 | U30: 0.8824 | V30: 45 | W30: =VLOOKUP(H30,Sheet_0!G:AJ,29,0) -> 45 | X30: 51 | Y30: =VLOOKUP(H30,Sheet_0!G:AJ,30,0) -> 51 | Z30: 0.9796 | AA30: 48 | AB30: =VLOOKUP(H30,Sheet_0!G:AM,32,0) -> 48 | AC30: 49 | AD30: =VLOOKUP(H30,Sheet_0!G:AM,33,0) -> 49 | AE30: 0 | AG30: 0 | AH30: 0 | AJ30: 0 | AK30: 0 | AM30: 0 | AN30: 0
A31: 202304 | B31: 12 | C31: 2023-04-12 | D31: 保定 | E31: 网络质量 | F31: 移网网络体验 | G31: -- | H31: 保定-- | I31: 480 | J31: 433 | K31: 17 | L31: 30 | M31: 0.9231 | N31: 156 | O31: =VLOOKUP(H31,Sheet_0!G:AG,26,0) -> 156 | P31: 168 | Q31: =VLOOKUP(H31,Sheet_0!G:AG,27,0) -> 168 | R31: 0.9231 | S31: 156 | T31: 168 | U31: 0.883 | V31: 166 | W31: =VLOOKUP(H31,Sheet_0!G:AJ,29,0) -> 166 | X31: 187 | Y31: =VLOOKUP(H31,Sheet_0!G:AJ,30,0) -> 187 | Z31: 0.9632 | AA31: 157 | AB31: =VLOOKUP(H31,Sheet_0!G:AM,32,0) -> 157 | AC31: 162 | AD31: =VLOOKUP(H31,Sheet_0!G:AM,33,0) -> 162 | AE31: 1 | AG31: 0 | AH31: 0 | AJ31: 0 | AK31: 0 | AM31: 0 | AN31: 0
A32: 202304 | B32: 12 | C32: 2023-04-12 | D32: 保定 | E32: 网络质量 | F32: 移网网络体验 | G32: 上网中断、不可用 | H32: 保定上网中断、不可用 | I32: 108 | J32: 81 | K32: 2 | L32: 25 | M32: 0.8974 | N32: 35 | O32: =VLOOKUP(H32,Sheet_0!G:AG,26,0) -> 35 | P32: 39 | Q32: =VLOOKUP(H32,Sheet_0!G:AG,27,0) -> 39 | R32: 0.8974 | S32: 35 | T32: 39 | U32: 0.925 | V32: 37 | W32: =VLOOKUP(H32,Sheet_0!G:AJ,29,0) -> 37 | X32: 40 | Y32: =VLOOKUP(H32,Sheet_0!G:AJ,30,0) -> 40 | Z32: 0.9189 | AA32: 34 | AB32: =VLOOKUP(H32,Sheet_0!G:AM,32,0) -> 34 | AC32: 37 | AD32: =VLOOKUP(H32,Sheet_0!G:AM,33,0) -> 37 | AE32: 0 | AG32: 0 | AH32: 0 | AJ32: 0 | AK32: 0 | AM32: 0 | AN32: 0
A33: 202304 | B33: 12 | C33: 2023-04-12 | D33: 保定 | E33: 网络质量 | F33: 移网网络体验 | G33: 上网网络卡顿 | H33: 保定上网网络卡顿 | I33: 170 | J33: 165 | K33: 4 | L33: 1 | M33: 0.9672 | N33: 59 | O33: =VLOOKUP(H33,Sheet_0!G:AG,26,0) -> 59 | P33: 61 | Q33: =VLOOKUP(H33,Sheet_0!G:AG,27,0) -> 61 | R33: 0.9672 | S33: 59 | T33: 61 | U33: 0.942 | V33: 65 | W33: =VLOOKUP(H33,Sheet_0!G:AJ,29,0) -> 65 | X33: 69 | Y33: =VLOOKUP(H33,Sheet_0!G:AJ,30,0) -> 69 | Z33: 1 | AA33: 60 | AB33: =VLOOKUP(H33,Sheet_0!G:AM,32,0) -> 60 | AC33: 60 | AD33: =VLOOKUP(H33,Sheet_0!G:AM,33,0) -> 60 | AE33: 0 | AG33: 0 | AH33: 0 | AJ33: 0 | AK33: 0 | AM33: 0 | AN33: 0
A34: 202304 | B34: 12 | C34: 2023-04-12 | D34: 保定 | E34: 网络质量 | F34: 移网网络体验 | G34: 漫游争议 | H34: 保定漫游争议 | I34: 1 | J34: 1 | K34: 0 | L34: 0 | M34: 1 | N34: 1 | O34: =VLOOKUP(H34,Sheet_0!G:AG,26,0) -> 1 | P34: 1 | Q34: =VLOOKUP(H34,Sheet_0!G:AG,27,0) -> 1 | R34: 1 | S34: 1 | T34: 1 | U34: 1 | V34: 1 | W34: =VLOOKUP(H34,Sheet_0!G:AJ,29,0) -> 1 | X34: 1 | Y34: =VLOOKUP(H34,Sheet_0!G:AJ,30,0) -> 1 | Z34: 1 | AA34: 1 | AB34: =VLOOKUP(H34,Sheet_0!G:AM,32,0) -> 1 | AC34: 1 | AD34: =VLOOKUP(H34,Sheet_0!G:AM,33,0) -> 1 | AE34: 0 | AG34: 0 | AH34: 0 | AJ34: 0 | AK34: 0 | AM34: 0 | AN34: 0
A35: 202304 | B35: 12 | C35: 2023-04-12 | D35: 保定 | E35: 网络质量 | F35: 移网网络体验 | G35: 短信使用问题 | H35: =D35&G35 -> 保定短信使用问题 | I35: 13 | J35: 7 | K35: 5 | L35: 1 | M35: 1 | N35: 1 | O35: =VLOOKUP(H35,Sheet_0!G:AG,26,0) -> 1 | P35: 1 | Q35: =VLOOKUP(H35,Sheet_0!G:AG,27,0) -> 1 | R35: 1 | S35: 1 | T35: 1 | U35: 1 | V35: 2 | W35: =VLOOKUP(H35,Sheet_0!G:AJ,29,0) -> 2 | X35: 2 | Y35: =VLOOKUP(H35,Sheet_0!G:AJ,30,0) -> 2 | Z35: 1 | AA35: 1 | AB35: =VLOOKUP(H35,Sheet_0!G:AM,32,0) -> 1 | AC35: 1 | AD35: =VLOOKUP(H35,Sheet_0!G:AM,33,0) -> 1 | AE35: 0 | AG35: 0 | AH35: 0 | AJ35: 0 | AK35: 0 | AM35: 0 | AN35: 0
A36: 202304 | B36: 12 | C36: 2023-04-12 | D36: 保定 | E36: 网络质量 | F36: 移网网络体验 | G36: 语音通信问题 | H36: 保定语音通信问题 | I36: 188 | J36: 179 | K36: 6 | L36: 3 | M36: 0.8955 | N36: 60 | O36: =VLOOKUP(H36,Sheet_0!G:AG,26,0) -> 60 | P36: 66 | Q36: =VLOOKUP(H36,Sheet_0!G:AG,27,0) -> 66 | R36: 0.8955 | S36: 60 | T36: 66 | U36: 0.8026 | V36: 61 | W36: =VLOOKUP(H36,Sheet_0!G:AJ,29,0) -> 61 | X36: 75 | Y36: =VLOOKUP(H36,Sheet_0!G:AJ,30,0) -> 75 | Z36: 0.9531 | AA36: 61 | AB36: =VLOOKUP(H36,Sheet_0!G:AM,32,0) -> 61 | AC36: 63 | AD36: =VLOOKUP(H36,Sheet_0!G:AM,33,0) -> 63 | AE36: 1 | AG36: 0 | AH36: 0 | AJ36: 0 | AK36: 0 | AM36: 0 | AN36: 0
A37: 202304 | B37: 12 | C37: 2023-04-12 | D37: 张家口 | E37: 网络质量 | F37: 移网网络体验 | G37: -- | H37: 张家口-- | I37: 193 | J37: 174 | K37: 6 | L37: 13 | M37: 0.8793 | N37: 51 | O37: =VLOOKUP(H37,Sheet_0!G:AG,26,0) -> 51 | P37: 58 | Q37: =VLOOKUP(H37,Sheet_0!G:AG,27,0) -> 58 | R37: 0.8793 | S37: 51 | T37: 58 | U37: 0.8548 | V37: 53 | W37: =VLOOKUP(H37,Sheet_0!G:AJ,29,0) -> 53 | X37: 62 | Y37: =VLOOKUP(H37,Sheet_0!G:AJ,30,0) -> 62 | Z37: 0.9474 | AA37: 54 | AB37: =VLOOKUP(H37,Sheet_0!G:AM,32,0) -> 54 | AC37: 57 | AD37: =VLOOKUP(H37,Sheet_0!G:AM,33,0) -> 57 | AE37: 0 | AG37: 0 | AH37: 0 | AJ37: 0 | AK37: 0 | AM37: 0 | AN37: 0
A38: 202304 | B38: 12 | C38: 2023-04-12 | D38: 张家口 | E38: 网络质量 | F38: 移网网络体验 | G38: 上网中断、不可用 | H38: 张家口上网中断、不可用 | I38: 59 | J38: 47 | K38: 0 | L38: 12 | M38: 1 | N38: 18 | O38: =VLOOKUP(H38,Sheet_0!G:AG,26,0) -> 18 | P38: 18 | Q38: =VLOOKUP(H38,Sheet_0!G:AG,27,0) -> 18 | R38: 1 | S38: 18 | T38: 18 | U38: 1 | V38: 18 | W38: =VLOOKUP(H38,Sheet_0!G:AJ,29,0) -> 18 | X38: 18 | Y38: =VLOOKUP(H38,Sheet_0!G:AJ,30,0) -> 18 | Z38: 1 | AA38: 18 | AB38: =VLOOKUP(H38,Sheet_0!G:AM,32,0) -> 18 | AC38: 18 | AD38: =VLOOKUP(H38,Sheet_0!G:AM,33,0) -> 18 | AE38: 0 | AG38: 0 | AH38: 0 | AJ38: 0 | AK38: 0 | AM38: 0 | AN38: 0
A39: 202304 | B39: 12 | C39: 2023-04-12 | D39: 张家口 | E39: 网络质量 | F39: 移网网络体验 | G39: 上网网络卡顿 | H39: 张家口上网网络卡顿 | I39: 47 | J39: 42 | K39: 4 | L39: 1 | M39: 0.8125 | N39: 13 | O39: =VLOOKUP(H39,Sheet_0!G:AG,26,0) -> 13 | P39: 16 | Q39: =VLOOKUP(H39,Sheet_0!G:AG,27,0) -> 16 | R39: 0.8125 | S39: 13 | T39: 16 | U39: 0.8235 | V39: 14 | W39: =VLOOKUP(H39,Sheet_0!G:AJ,29,0) -> 14 | X39: 17 | Y39: =VLOOKUP(H39,Sheet_0!G:AJ,30,0) -> 17 | Z39: 0.9375 | AA39: 15 | AB39: =VLOOKUP(H39,Sheet_0!G:AM,32,0) -> 15 | AC39: 16 | AD39: =VLOOKUP(H39,Sheet_0!G:AM,33,0) -> 16 | AE39: 0 | AG39: 0 | AH39: 0 | AJ39: 0 | AK39: 0 | AM39: 0 | AN39: 0
A40: 202304 | B40: 12 | C40: 2023-04-12 | D40: 张家口 | E40: 网络质量 | F40: 移网网络体验 | G40: 漫游争议 | H40: 张家口漫游争议 | I40: 1 | J40: 1 | K40: 0 | L40: 0 | M40: 1 | N40: 1 | O40: =VLOOKUP(H40,Sheet_0!G:AG,26,0) -> 1 | P40: 1 | Q40: =VLOOKUP(H40,Sheet_0!G:AG,27,0) -> 1 | R40: 1 | S40: 1 | T40: 1 | U40: 1 | V40: 1 | W40: =VLOOKUP(H40,Sheet_0!G:AJ,29,0) -> 1 | X40: 1 | Y40: =VLOOKUP(H40,Sheet_0!G:AJ,30,0) -> 1 | Z40: 1 | AA40: 1 | AB40: =VLOOKUP(H40,Sheet_0!G:AM,32,0) -> 1 | AC40: 1 | AD40: =VLOOKUP(H40,Sheet_0!G:AM,33,0) -> 1 | AE40: 0 | AG40: 0 | AH40: 0 | AJ40: 0 | AK40: 0 | AM40: 0 | AN40: 0
A41: 202304 | B41: 12 | C41: 2023-04-12 | D41: 张家口 | E41: 网络质量 | F41: 移网网络体验 | G41: 短信使用问题 | H41: 张家口短信使用问题 | I41: 4 | J41: 4 | K41: 0 | L41: 0 | M41: 1 | N41: 2 | O41: =VLOOKUP(H41,Sheet_0!G:AG,26,0) -> 2 | P41: 2 | Q41: =VLOOKUP(H41,Sheet_0!G:AG,27,0) -> 2 | R41: 1 | S41: 2 | T41: 2 | U41: 0.5 | V41: 1 | W41: =VLOOKUP(H41,Sheet_0!G:AJ,29,0) -> 1 | X41: 2 | Y41: =VLOOKUP(H41,Sheet_0!G:AJ,30,0) -> 2 | Z41: 1 | AA41: 2 | AB41: =VLOOKUP(H41,Sheet_0!G:AM,32,0) -> 2 | AC41: 2 | AD41: =VLOOKUP(H41,Sheet_0!G:AM,33,0) -> 2 | AE41: 0 | AG41: 0 | AH41: 0 | AJ41: 0 | AK41: 0 | AM41: 0 | AN41: 0
A42: 202304 | B42: 12 | C42: 2023-04-12 | D42: 张家口 | E42: 网络质量 | F42: 移网网络体验 | G42: 语音通信问题 | H42: 张家口语音通信问题 | I42: 82 | J42: 80 | K42: 2 | L42: 0 | M42: 0.8095 | N42: 17 | O42: =VLOOKUP(H42,Sheet_0!G:AG,26,0) -> 17 | P42: 21 | Q42: =VLOOKUP(H42,Sheet_0!G:AG,27,0) -> 21 | R42: 0.8095 | S42: 17 | T42: 21 | U42: 0.7917 | V42: 19 | W42: =VLOOKUP(H42,Sheet_0!G:AJ,29,0) -> 19 | X42: 24 | Y42: =VLOOKUP(H42,Sheet_0!G:AJ,30,0) -> 24 | Z42: 0.9 | AA42: 18 | AB42: =VLOOKUP(H42,Sheet_0!G:AM,32,0) -> 18 | AC42: 20 | AD42: =VLOOKUP(H42,Sheet_0!G:AM,33,0) -> 20 | AE42: 0 | AG42: 0 | AH42: 0 | AJ42: 0 | AK42: 0 | AM42: 0 | AN42: 0
A43: 202304 | B43: 12 | C43: 2023-04-12 | D43: 承德 | E43: 网络质量 | F43: 移网网络体验 | G43: -- | H43: 承德-- | I43: 241 | J43: 230 | K43: 2 | L43: 9 | M43: 0.9375 | N43: 90 | O43: =VLOOKUP(H43,Sheet_0!G:AG,26,0) -> 90 | P43: 96 | Q43: =VLOOKUP(H43,Sheet_0!G:AG,27,0) -> 96 | R43: 0.9375 | S43: 90 | T43: 96 | U43: 0.8911 | V43: 90 | W43: =VLOOKUP(H43,Sheet_0!G:AJ,29,0) -> 90 | X43: 101 | Y43: =VLOOKUP(H43,Sheet_0!G:AJ,30,0) -> 101 | Z43: 0.9762 | AA43: 82 | AB43: =VLOOKUP(H43,Sheet_0!G:AM,32,0) -> 82 | AC43: 84 | AD43: =VLOOKUP(H43,Sheet_0!G:AM,33,0) -> 84 | AE43: 0 | AG43: 0 | AH43: 0 | AJ43: 0 | AK43: 0 | AM43: 0 | AN43: 0
A44: 202304 | B44: 12 | C44: 2023-04-12 | D44: 承德 | E44: 网络质量 | F44: 移网网络体验 | G44: 上网中断、不可用 | H44: 承德上网中断、不可用 | I44: 69 | J44: 61 | K44: 1 | L44: 7 | M44: 0.9429 | N44: 33 | O44: =VLOOKUP(H44,Sheet_0!G:AG,26,0) -> 33 | P44: 35 | Q44: =VLOOKUP(H44,Sheet_0!G:AG,27,0) -> 35 | R44: 0.9429 | S44: 33 | T44: 35 | U44: 0.9189 | V44: 34 | W44: =VLOOKUP(H44,Sheet_0!G:AJ,29,0) -> 34 | X44: 37 | Y44: =VLOOKUP(H44,Sheet_0!G:AJ,30,0) -> 37 | Z44: 0.9677 | AA44: 30 | AB44: =VLOOKUP(H44,Sheet_0!G:AM,32,0) -> 30 | AC44: 31 | AD44: =VLOOKUP(H44,Sheet_0!G:AM,33,0) -> 31 | AE44: 0 | AG44: 0 | AH44: 0 | AJ44: 0 | AK44: 0 | AM44: 0 | AN44: 0
A45: 202304 | B45: 12 | C45: 2023-04-12 | D45: 承德 | E45: 网络质量 | F45: 移网网络体验 | G45: 上网网络卡顿 | H45: 承德上网网络卡顿 | I45: 67 | J45: 66 | K45: 0 | L45: 1 | M45: 1 | N45: 19 | O45: =VLOOKUP(H45,Sheet_0!G:AG,26,0) -> 19 | P45: 19 | Q45: =VLOOKUP(H45,Sheet_0!G:AG,27,0) -> 19 | R45: 1 | S45: 19 | T45: 19 | U45: 0.9 | V45: 18 | W45: =VLOOKUP(H45,Sheet_0!G:AJ,29,0) -> 18 | X45: 20 | Y45: =VLOOKUP(H45,Sheet_0!G:AJ,30,0) -> 20 | Z45: 1 | AA45: 16 | AB45: =VLOOKUP(H45,Sheet_0!G:AM,32,0) -> 16 | AC45: 16 | AD45: =VLOOKUP(H45,Sheet_0!G:AM,33,0) -> 16 | AE45: 0 | AG45: 0 | AH45: 0 | AJ45: 0 | AK45: 0 | AM45: 0 | AN45: 0
A46: 202304 | B46: 12 | C46: 2023-04-12 | D46: 承德 | E46: 网络质量 | F46: 移网网络体验 | G46: 短信使用问题 | H46: 承德短信使用问题 | I46: 1 | J46: 1 | K46: 0 | L46: 0 | M46: 1 | N46: 1 | O46: =VLOOKUP(H46,Sheet_0!G:AG,26,0) -> 1 | P46: 1 | Q46: =VLOOKUP(H46,Sheet_0!G:AG,27,0) -> 1 | R46: 1 | S46: 1 | T46: 1 | U46: 1 | V46: 1 | W46: =VLOOKUP(H46,Sheet_0!G:AJ,29,0) -> 1 | X46: 1 | Y46: =VLOOKUP(H46,Sheet_0!G:AJ,30,0) -> 1 | Z46: 1 | AA46: 1 | AB46: =VLOOKUP(H46,Sheet_0!G:AM,32,0) -> 1 | AC46: 1 | AD46: =VLOOKUP(H46,Sheet_0!G:AM,33,0) -> 1 | AE46: 0 | AG46: 0 | AH46: 0 | AJ46: 0 | AK46: 0 | AM46: 0 | AN46: 0
A47: 202304 | B47: 12 | C47: 2023-04-12 | D47: 承德 | E47: 网络质量 | F47: 移网网络体验 | G47: 语音通信问题 | H47: 承德语音通信问题 | I47: 104 | J47: 102 | K47: 1 | L47: 1 | M47: 0.9024 | N47: 37 | O47: =VLOOKUP(H47,Sheet_0!G:AG,26,0) -> 37 | P47: 41 | Q47: =VLOOKUP(H47,Sheet_0!G:AG,27,0) -> 41 | R47: 0.9024 | S47: 37 | T47: 41 | U47: 0.8605 | V47: 37 | W47: =VLOOKUP(H47,Sheet_0!G:AJ,29,0) -> 37 | X47: 43 | Y47: =VLOOKUP(H47,Sheet_0!G:AJ,30,0) -> 43 | Z47: 0.9722 | AA47: 35 | AB47: =VLOOKUP(H47,Sheet_0!G:AM,32,0) -> 35 | AC47: 36 | AD47: =VLOOKUP(H47,Sheet_0!G:AM,33,0) -> 36 | AE47: 0 | AG47: 0 | AH47: 0 | AJ47: 0 | AK47: 0 | AM47: 0 | AN47: 0
A48: 202304 | B48: 12 | C48: 2023-04-12 | D48: 廊坊 | E48: 网络质量 | F48: 移网网络体验 | G48: -- | H48: 廊坊-- | I48: 400 | J48: 365 | K48: 13 | L48: 22 | M48: 0.9497 | N48: 170 | O48: =VLOOKUP(H48,Sheet_0!G:AG,26,0) -> 170 | P48: 179 | Q48: =VLOOKUP(H48,Sheet_0!G:AG,27,0) -> 179 | R48: 0.9497 | S48: 170 | T48: 179 | U48: 0.849 | V48: 163 | W48: =VLOOKUP(H48,Sheet_0!G:AJ,29,0) -> 163 | X48: 192 | Y48: =VLOOKUP(H48,Sheet_0!G:AJ,30,0) -> 192 | Z48: 0.9882 | AA48: 167 | AB48: =VLOOKUP(H48,Sheet_0!G:AM,32,0) -> 167 | AC48: 169 | AD48: =VLOOKUP(H48,Sheet_0!G:AM,33,0) -> 169 | AE48: 0 | AG48: 0 | AH48: 0 | AJ48: 0 | AK48: 0 | AM48: 0 | AN48: 0
A49: 202304 | B49: 12 | C49: 2023-04-12 | D49: 廊坊 | E49: 网络质量 | F49: 移网网络体验 | G49: 上网中断、不可用 | H49: 廊坊上网中断、不可用 | I49: 105 | J49: 87 | K49: 2 | L49: 16 | M49: 1 | N49: 37 | O49: =VLOOKUP(H49,Sheet_0!G:AG,26,0) -> 37 | P49: 37 | Q49: =VLOOKUP(H49,Sheet_0!G:AG,27,0) -> 37 | R49: 1 | S49: 37 | T49: 37 | U49: 0.8182 | V49: 36 | W49: =VLOOKUP(H49,Sheet_0!G:AJ,29,0) -> 36 | X49: 44 | Y49: =VLOOKUP(H49,Sheet_0!G:AJ,30,0) -> 44 | Z49: 0.9722 | AA49: 35 | AB49: =VLOOKUP(H49,Sheet_0!G:AM,32,0) -> 35 | AC49: 36 | AD49: =VLOOKUP(H49,Sheet_0!G:AM,33,0) -> 36 | AE49: 0 | AG49: 0 | AH49: 0 | AJ49: 0 | AK49: 0 | AM49: 0 | AN49: 0
A50: 202304 | B50: 12 | C50: 2023-04-12 | D50: 廊坊 | E50: 网络质量 | F50: 移网网络体验 | G50: 上网网络卡顿 | H50: 廊坊上网网络卡顿 | I50: 133 | J50: 125 | K50: 6 | L50: 2 | M50: 0.8986 | N50: 62 | O50: =VLOOKUP(H50,Sheet_0!G:AG,26,0) -> 62 | P50: 69 | Q50: =VLOOKUP(H50,Sheet_0!G:AG,27,0) -> 69 | R50: 0.8986 | S50: 62 | T50: 69 | U50: 0.9014 | V50: 64 | W50: =VLOOKUP(H50,Sheet_0!G:AJ,29,0) -> 64 | X50: 71 | Y50: =VLOOKUP(H50,Sheet_0!G:AJ,30,0) -> 71 | Z50: 1 | AA50: 62 | AB50: =VLOOKUP(H50,Sheet_0!G:AM,32,0) -> 62 | AC50: 62 | AD50: =VLOOKUP(H50,Sheet_0!G:AM,33,0) -> 62 | AE50: 0 | AG50: 0 | AH50: 0 | AJ50: 0 | AK50: 0 | AM50: 0 | AN50: 0
A51: 202304 | B51: 12 | C51: 2023-04-12 | D51: 廊坊 | E51: 网络质量 | F51: 移网网络体验 | G51: 短信使用问题 | H51: 廊坊短信使用问题 | I51: 7 | J51: 1 | K51: 3 | L51: 3 | M51: 1 | N51: 2 | O51: =VLOOKUP(H51,Sheet_0!G:AG,26,0) -> 2 | P51: 2 | Q51: =VLOOKUP(H51,Sheet_0!G:AG,27,0) -> 2 | R51: 1 | S51: 2 | T51: 2 | U51: 1 | V51: 3 | W51: =VLOOKUP(H51,Sheet_0!G:AJ,29,0) -> 3 | X51: 3 | Y51: =VLOOKUP(H51,Sheet_0!G:AJ,30,0) -> 3 | Z51: 1 | AA51: 2 | AB51: =VLOOKUP(H51,Sheet_0!G:AM,32,0) -> 2 | AC51: 2 | AD51: =VLOOKUP(H51,Sheet_0!G:AM,33,0) -> 2 | AE51: 0 | AG51: 0 | AH51: 0 | AJ51: 0 | AK51: 0 | AM51: 0 | AN51: 0
A52: 202304 | B52: 12 | C52: 2023-04-12 | D52: 廊坊 | E52: 网络质量 | F52: 移网网络体验 | G52: 语音通信问题 | H52: 廊坊语音通信问题 | I52: 155 | J52: 152 | K52: 2 | L52: 1 | M52: 0.9718 | N52: 69 | O52: =VLOOKUP(H52,Sheet_0!G:AG,26,0) -> 69 | P52: 71 | Q52: =VLOOKUP(H52,Sheet_0!G:AG,27,0) -> 71 | R52: 0.9718 | S52: 69 | T52: 71 | U52: 0.8108 | V52: 60 | W52: =VLOOKUP(H52,Sheet_0!G:AJ,29,0) -> 60 | X52: 74 | Y52: =VLOOKUP(H52,Sheet_0!G:AJ,30,0) -> 74 | Z52: 0.9855 | AA52: 68 | AB52: =VLOOKUP(H52,Sheet_0!G:AM,32,0) -> 68 | AC52: 69 | AD52: =VLOOKUP(H52,Sheet_0!G:AM,33,0) -> 69 | AE52: 0 | AG52: 0 | AH52: 0 | AJ52: 0 | AK52: 0 | AM52: 0 | AN52: 0
A53: 202304 | B53: 12 | C53: 2023-04-12 | D53: 沧州 | E53: 网络质量 | F53: 移网网络体验 | G53: -- | H53: 沧州-- | I53: 605 | J53: 576 | K53: 11 | L53: 18 | M53: 0.9039 | N53: 254 | O53: =VLOOKUP(H53,Sheet_0!G:AG,26,0) -> 254 | P53: 281 | Q53: =VLOOKUP(H53,Sheet_0!G:AG,27,0) -> 281 | R53: 0.9039 | S53: 254 | T53: 281 | U53: 0.852 | V53: 259 | W53: =VLOOKUP(H53,Sheet_0!G:AJ,29,0) -> 259 | X53: 304 | Y53: =VLOOKUP(H53,Sheet_0!G:AJ,30,0) -> 304 | Z53: 0.966 | AA53: 256 | AB53: =VLOOKUP(H53,Sheet_0!G:AM,32,0) -> 256 | AC53: 265 | AD53: =VLOOKUP(H53,Sheet_0!G:AM,33,0) -> 265 | AE53: 0 | AG53: 0 | AH53: 0 | AJ53: 0 | AK53: 0 | AM53: 0 | AN53: 0
A54: 202304 | B54: 12 | C54: 2023-04-12 | D54: 沧州 | E54: 网络质量 | F54: 移网网络体验 | G54: 上网中断、不可用 | H54: 沧州上网中断、不可用 | I54: 133 | J54: 116 | K54: 3 | L54: 14 | M54: 0.9077 | N54: 59 | O54: =VLOOKUP(H54,Sheet_0!G:AG,26,0) -> 59 | P54: 65 | Q54: =VLOOKUP(H54,Sheet_0!G:AG,27,0) -> 65 | R54: 0.9077 | S54: 59 | T54: 65 | U54: 0.9014 | V54: 64 | W54: =VLOOKUP(H54,Sheet_0!G:AJ,29,0) -> 64 | X54: 71 | Y54: =VLOOKUP(H54,Sheet_0!G:AJ,30,0) -> 71 | Z54: 1 | AA54: 59 | AB54: =VLOOKUP(H54,Sheet_0!G:AM,32,0) -> 59 | AC54: 59 | AD54: =VLOOKUP(H54,Sheet_0!G:AM,33,0) -> 59 | AE54: 0 | AG54: 0 | AH54: 0 | AJ54: 0 | AK54: 0 | AM54: 0 | AN54: 0
A55: 202304 | B55: 12 | C55: 2023-04-12 | D55: 沧州 | E55: 网络质量 | F55: 移网网络体验 | G55: 上网网络卡顿 | H55: 沧州上网网络卡顿 | I55: 148 | J55: 147 | K55: 1 | L55: 0 | M55: 0.9333 | N55: 70 | O55: =VLOOKUP(H55,Sheet_0!G:AG,26,0) -> 70 | P55: 75 | Q55: =VLOOKUP(H55,Sheet_0!G:AG,27,0) -> 75 | R55: 0.9333 | S55: 70 | T55: 75 | U55: 0.939 | V55: 77 | W55: =VLOOKUP(H55,Sheet_0!G:AJ,29,0) -> 77 | X55: 82 | Y55: =VLOOKUP(H55,Sheet_0!G:AJ,30,0) -> 82 | Z55: 0.9583 | AA55: 69 | AB55: =VLOOKUP(H55,Sheet_0!G:AM,32,0) -> 69 | AC55: 72 | AD55: =VLOOKUP(H55,Sheet_0!G:AM,33,0) -> 72 | AE55: 0 | AG55: 0 | AH55: 0 | AJ55: 0 | AK55: 0 | AM55: 0 | AN55: 0
A56: 202304 | B56: 12 | C56: 2023-04-12 | D56: 沧州 | E56: 网络质量 | F56: 移网网络体验 | G56: 短信使用问题 | H56: 沧州短信使用问题 | I56: 10 | J56: 7 | K56: 2 | L56: 1 | M56: 0.3333 | N56: 1 | O56: =VLOOKUP(H56,Sheet_0!G:AG,26,0) -> 1 | P56: 3 | Q56: =VLOOKUP(H56,Sheet_0!G:AG,27,0) -> 3 | R56: 0.3333 | S56: 1 | T56: 3 | U56: 0.3333 | V56: 1 | W56: =VLOOKUP(H56,Sheet_0!G:AJ,29,0) -> 1 | X56: 3 | Y56: =VLOOKUP(H56,Sheet_0!G:AJ,30,0) -> 3 | Z56: 0.3333 | AA56: 1 | AB56: =VLOOKUP(H56,Sheet_0!G:AM,32,0) -> 1 | AC56: 3 | AD56: =VLOOKUP(H56,Sheet_0!G:AM,33,0) -> 3 | AE56: 0 | AG56: 0 | AH56: 0 | AJ56: 0 | AK56: 0 | AM56: 0 | AN56: 0
A57: 202304 | B57: 12 | C57: 2023-04-12 | D57: 沧州 | E57: 网络质量 | F57: 移网网络体验 | G57: 语音通信问题 | H57: 沧州语音通信问题 | I57: 314 | J57: 306 | K57: 5 | L57: 3 | M57: 0.8986 | N57: 124 | O57: =VLOOKUP(H57,Sheet_0!G:AG,26,0) -> 124 | P57: 138 | Q57: =VLOOKUP(H57,Sheet_0!G:AG,27,0) -> 138 | R57: 0.8986 | S57: 124 | T57: 138 | U57: 0.7905 | V57: 117 | W57: =VLOOKUP(H57,Sheet_0!G:AJ,29,0) -> 117 | X57: 148 | Y57: =VLOOKUP(H57,Sheet_0!G:AJ,30,0) -> 148 | Z57: 0.9695 | AA57: 127 | AB57: =VLOOKUP(H57,Sheet_0!G:AM,32,0) -> 127 | AC57: 131 | AD57: =VLOOKUP(H57,Sheet_0!G:AM,33,0) -> 131 | AE57: 0 | AG57: 0 | AH57: 0 | AJ57: 0 | AK57: 0 | AM57: 0 | AN57: 0
A58: 202304 | B58: 12 | C58: 2023-04-12 | D58: 衡水 | E58: 网络质量 | F58: 移网网络体验 | G58: -- | H58: 衡水-- | I58: 230 | J58: 210 | K58: 2 | L58: 18 | M58: 0.9242 | N58: 61 | O58: =VLOOKUP(H58,Sheet_0!G:AG,26,0) -> 61 | P58: 65 | Q58: =VLOOKUP(H58,Sheet_0!G:AG,27,0) -> 65 | R58: 0.9242 | S58: 61 | T58: 65 | U58: 0.8841 | V58: 61 | W58: =VLOOKUP(H58,Sheet_0!G:AJ,29,0) -> 61 | X58: 68 | Y58: =VLOOKUP(H58,Sheet_0!G:AJ,30,0) -> 68 | Z58: 0.9688 | AA58: 62 | AB58: =VLOOKUP(H58,Sheet_0!G:AM,32,0) -> 62 | AC58: 63 | AD58: =VLOOKUP(H58,Sheet_0!G:AM,33,0) -> 63 | AE58: 1 | AG58: 0 | AH58: 0 | AJ58: 0 | AK58: 0 | AM58: 0 | AN58: 0
A59: 202304 | B59: 12 | C59: 2023-04-12 | D59: 衡水 | E59: 网络质量 | F59: 移网网络体验 | G59: 上网中断、不可用 | H59: 衡水上网中断、不可用 | I59: 69 | J59: 52 | K59: 0 | L59: 17 | M59: 1 | N59: 22 | O59: =VLOOKUP(H59,Sheet_0!G:AG,26,0) -> 22 | P59: 22 | Q59: =VLOOKUP(H59,Sheet_0!G:AG,27,0) -> 22 | R59: 1 | S59: 22 | T59: 22 | U59: 0.9583 | V59: 23 | W59: =VLOOKUP(H59,Sheet_0!G:AJ,29,0) -> 23 | X59: 24 | Y59: =VLOOKUP(H59,Sheet_0!G:AJ,30,0) -> 24 | Z59: 1 | AA59: 21 | AB59: =VLOOKUP(H59,Sheet_0!G:AM,32,0) -> 21 | AC59: 21 | AD59: =VLOOKUP(H59,Sheet_0!G:AM,33,0) -> 21 | AE59: 0 | AG59: 0 | AH59: 0 | AJ59: 0 | AK59: 0 | AM59: 0 | AN59: 0
A60: 202304 | B60: 12 | C60: 2023-04-12 | D60: 衡水 | E60: 网络质量 | F60: 移网网络体验 | G60: 上网网络卡顿 | H60: 衡水上网网络卡顿 | I60: 82 | J60: 80 | K60: 2 | L60: 0 | M60: 0.9524 | N60: 20 | O60: =VLOOKUP(H60,Sheet_0!G:AG,26,0) -> 20 | P60: 21 | Q60: =VLOOKUP(H60,Sheet_0!G:AG,27,0) -> 21 | R60: 0.9524 | S60: 20 | T60: 21 | U60: 0.9 | V60: 18 | W60: =VLOOKUP(H60,Sheet_0!G:AJ,29,0) -> 18 | X60: 20 | Y60: =VLOOKUP(H60,Sheet_0!G:AJ,30,0) -> 20 | Z60: 1 | AA60: 21 | AB60: =VLOOKUP(H60,Sheet_0!G:AM,32,0) -> 21 | AC60: 21 | AD60: =VLOOKUP(H60,Sheet_0!G:AM,33,0) -> 21 | AE60: 0 | AG60: 0 | AH60: 0 | AJ60: 0 | AK60: 0 | AM60: 0 | AN60: 0
A61: 202304 | B61: 12 | C61: 2023-04-12 | D61: 衡水 | E61: 网络质量 | F61: 移网网络体验 | G61: 短信使用问题 | H61: 衡水短信使用问题 | I61: 4 | J61: 3 | K61: 0 | L61: 1 | N61: 0 | O61: =VLOOKUP(H61,Sheet_0!G:AG,26,0) -> 0 | P61: 0 | Q61: =VLOOKUP(H61,Sheet_0!G:AG,27,0) -> 0 | S61: 0 | T61: 0 | V61: 0 | W61: =VLOOKUP(H61,Sheet_0!G:AJ,29,0) -> 0 | X61: 0 | Y61: =VLOOKUP(H61,Sheet_0!G:AJ,30,0) -> 0 | AA61: 0 | AB61: =VLOOKUP(H61,Sheet_0!G:AM,32,0) -> 0 | AC61: 0 | AD61: =VLOOKUP(H61,Sheet_0!G:AM,33,0) -> 0 | AE61: 0 | AG61: 0 | AH61: 0 | AJ61: 0 | AK61: 0 | AM61: 0 | AN61: 0
A62: 202304 | B62: 12 | C62: 2023-04-12 | D62: 衡水 | E62: 网络质量 | F62: 移网网络体验 | G62: 语音通信问题 | H62: 衡水语音通信问题 | I62: 75 | J62: 75 | K62: 0 | L62: 0 | M62: 0.8261 | N62: 19 | O62: =VLOOKUP(H62,Sheet_0!G:AG,26,0) -> 19 | P62: 22 | Q62: =VLOOKUP(H62,Sheet_0!G:AG,27,0) -> 22 | R62: 0.8261 | S62: 19 | T62: 22 | U62: 0.8 | V62: 20 | W62: =VLOOKUP(H62,Sheet_0!G:AJ,29,0) -> 20 | X62: 24 | Y62: =VLOOKUP(H62,Sheet_0!G:AJ,30,0) -> 24 | Z62: 0.9091 | AA62: 20 | AB62: =VLOOKUP(H62,Sheet_0!G:AM,32,0) -> 20 | AC62: 21 | AD62: =VLOOKUP(H62,Sheet_0!G:AM,33,0) -> 21 | AE62: 1 | AG62: 0 | AH62: 0 | AJ62: 0 | AK62: 0 | AM62: 0 | AN62: 0
A63: 202304 | B63: 12 | C63: 2023-04-12 | D63: 雄安新区 | E63: 网络质量 | F63: 移网网络体验 | G63: -- | H63: 雄安新区-- | I63: 81 | J63: 74 | K63: 1 | L63: 6 | M63: 0.8378 | N63: 31 | O63: =VLOOKUP(H63,Sheet_0!G:AG,26,0) -> 31 | P63: 35 | Q63: =VLOOKUP(H63,Sheet_0!G:AG,27,0) -> 35 | R63: 0.8378 | S63: 31 | T63: 35 | U63: 0.7838 | V63: 29 | W63: =VLOOKUP(H63,Sheet_0!G:AJ,29,0) -> 29 | X63: 35 | Y63: =VLOOKUP(H63,Sheet_0!G:AJ,30,0) -> 35 | Z63: 0.8857 | AA63: 31 | AB63: =VLOOKUP(H63,Sheet_0!G:AM,32,0) -> 31 | AC63: 33 | AD63: =VLOOKUP(H63,Sheet_0!G:AM,33,0) -> 33 | AE63: 2 | AG63: 0 | AH63: 0 | AJ63: 0 | AK63: 0 | AM63: 0 | AN63: 0
A64: 202304 | B64: 12 | C64: 2023-04-12 | D64: 雄安新区 | E64: 网络质量 | F64: 移网网络体验 | G64: 上网中断、不可用 | H64: 雄安新区上网中断、不可用 | I64: 23 | J64: 18 | K64: 0 | L64: 5 | M64: 0.6 | N64: 3 | O64: =VLOOKUP(H64,Sheet_0!G:AG,26,0) -> 3 | P64: 5 | Q64: =VLOOKUP(H64,Sheet_0!G:AG,27,0) -> 5 | R64: 0.6 | S64: 3 | T64: 5 | U64: 0.6 | V64: 3 | W64: =VLOOKUP(H64,Sheet_0!G:AJ,29,0) -> 3 | X64: 5 | Y64: =VLOOKUP(H64,Sheet_0!G:AJ,30,0) -> 5 | Z64: 1 | AA64: 4 | AB64: =VLOOKUP(H64,Sheet_0!G:AM,32,0) -> 4 | AC64: 4 | AD64: =VLOOKUP(H64,Sheet_0!G:AM,33,0) -> 4 | AE64: 0 | AG64: 0 | AH64: 0 | AJ64: 0 | AK64: 0 | AM64: 0 | AN64: 0
A65: 202304 | B65: 12 | C65: 2023-04-12 | D65: 雄安新区 | E65: 网络质量 | F65: 移网网络体验 | G65: 上网网络卡顿 | H65: 雄安新区上网网络卡顿 | I65: 32 | J65: 32 | K65: 0 | L65: 0 | M65: 0.8667 | N65: 13 | O65: =VLOOKUP(H65,Sheet_0!G:AG,26,0) -> 13 | P65: 15 | Q65: =VLOOKUP(H65,Sheet_0!G:AG,27,0) -> 15 | R65: 0.8667 | S65: 13 | T65: 15 | U65: 0.8 | V65: 12 | W65: =VLOOKUP(H65,Sheet_0!G:AJ,29,0) -> 12 | X65: 15 | Y65: =VLOOKUP(H65,Sheet_0!G:AJ,30,0) -> 15 | Z65: 0.8667 | AA65: 13 | AB65: =VLOOKUP(H65,Sheet_0!G:AM,32,0) -> 13 | AC65: 15 | AD65: =VLOOKUP(H65,Sheet_0!G:AM,33,0) -> 15 | AE65: 0 | AG65: 0 | AH65: 0 | AJ65: 0 | AK65: 0 | AM65: 0 | AN65: 0
A66: 202304 | B66: 12 | C66: 2023-04-12 | D66: 雄安新区 | E66: 网络质量 | F66: 移网网络体验 | G66: 短信使用问题 | H66: 雄安新区短信使用问题 | I66: 1 | J66: 0 | K66: 0 | L66: 1 | M66: 1 | N66: 1 | O66: =VLOOKUP(H66,Sheet_0!G:AG,26,0) -> 1 | P66: 1 | Q66: =VLOOKUP(H66,Sheet_0!G:AG,27,0) -> 1 | R66: 1 | S66: 1 | T66: 1 | U66: 1 | V66: 1 | W66: =VLOOKUP(H66,Sheet_0!G:AJ,29,0) -> 1 | X66: 1 | Y66: =VLOOKUP(H66,Sheet_0!G:AJ,30,0) -> 1 | Z66: 1 | AA66: 1 | AB66: =VLOOKUP(H66,Sheet_0!G:AM,32,0) -> 1 | AC66: 1 | AD66: =VLOOKUP(H66,Sheet_0!G:AM,33,0) -> 1 | AE66: 0 | AG66: 0 | AH66: 0 | AJ66: 0 | AK66: 0 | AM66: 0 | AN66: 0
A67: 202304 | B67: 12 | C67: 2023-04-12 | D67: 雄安新区 | E67: 网络质量 | F67: 移网网络体验 | G67: 语音通信问题 | H67: =D67&G67 -> 雄安新区语音通信问题 | I67: 25 | J67: 24 | K67: 1 | L67: 0 | M67: 0.875 | N67: 14 | O67: =VLOOKUP(H67,Sheet_0!G:AG,26,0) -> 14 | P67: 14 | Q67: =VLOOKUP(H67,Sheet_0!G:AG,27,0) -> 14 | R67: 0.875 | S67: 14 | T67: 14 | U67: 0.8125 | V67: 13 | W67: =VLOOKUP(H67,Sheet_0!G:AJ,29,0) -> 13 | X67: 14 | Y67: =VLOOKUP(H67,Sheet_0!G:AJ,30,0) -> 14 | Z67: 0.8667 | AA67: 13 | AB67: =VLOOKUP(H67,Sheet_0!G:AM,32,0) -> 13 | AC67: 13 | AD67: =VLOOKUP(H67,Sheet_0!G:AM,33,0) -> 13 | AE67: 2 | AG67: 0 | AH67: 0 | AJ67: 0 | AK67: 0 | AM67: 0 | AN67: 0
